{"text_format":"1","workbook":"xlsx","n_sheets":19,"sheets":["Menu","Administration de QCM","Veille informationnelle","Présentation orale","Site web et blog","Mur collaboratif","Base","Cartes mentales","Filmer son écran","Gestion de projet","Outils de communication","Magazine en ligne","Partage de contenus","Outils de planification","Schéma de processus","Compression et convertisseur","Hebergement_video","VIDEOS","LISTE COMPLETE"],"not_rendered":{"charts":0,"images":3,"macros":1,"external_links":0,"defined_names":18,"comments":0,"pivot_tables":0},"unopened":[],"bounds":{"document_bytes":16777216,"sheet_cells":100000,"rows_first":2000,"rows_last":500,"rows_between":2000,"halvings":0,"cell_chars":16384,"cell_head_chars":4096},"cells_cut":0,"cells_raw":0,"read":"whole","date_system":"1900"}

{"sheet":"Menu","index":0,"n_rows":42,"n_cols":15,"rows_kept":42,"cut":false,"hidden":false,"merged":[[4,0,4,16],[5,0,6,6],[5,8,6,14]]}
[]
[]
[null,null,null,null,null,null,null,null,null,null,null,null,null,null,"Comité éditorial"]
[]
["TABLEAUX OUTILS NUMERIQUES"]
["Outils collaboratifs",null,null,null,null,null,null,null,"Utilitaires"]
[]
[]
[]
[]
[]
[]
[]
[]
[]
[]
[]
[]
[]
[]
[]
[]
[]
[]
[]
[]
[]
[]
[]
[]
[]
[]
[]
[]
[]
[]
[]
[]
[]
[]
[]
["Remarques : la colonne \"Contraintes\"  de chaque feuille de calcul, ne prend pas en considération les limites liées au RGPD."]

{"sheet":"Administration de QCM","index":1,"n_rows":29,"n_cols":7,"rows_kept":29,"cut":false,"hidden":false,"merged":[[4,0,4,6],[6,0,7,5]]}
[]
[]
[null,null,null,null,null,null,"Comité éditorial"]
[]
["QUELS OUTILS NUMERIQUES POUR QUELLES ACTIVITES ?"]
[]
["REALISATION DE QCM et JEUX PEDAGOGIQUES dont des FLASHCARDS et un OUTIL D'EVALUATION"]
[]
[]
["Quelles activités ?"," Quels outils ?","Présentation rapide","Gratuité proposée","Contrainte","Adresses","Modes opératoires"]
["Réaliser et administrer des QCM ","Socrative","Plateforme en ligne de tests, permet de créer des sondages, quizz et QCM (questionnaires à choix multiple) et d’obtenir des réponses en temps réel ou au rythme de l'élève.","Version gratuite","Créer un compte / un seul questionnaireactif à la fois en version gratuite","http://www.socrative.com/","https://www.youtube.com/watch?v=M6iVtc5KRaE&feature=youtu.be"]
["Réaliser et administrer des QCM ","Evalqcm","Plateforme qui permet de créer des questionnaires en ligne et d’obtenir des réponses en temps réel."," Certaines fonctionnalités sont accessibles gratuitement et d'autres sont payantes par les utilisateurs (abonnement forfaitaire)."," Certaines fonctionnalités d'EvalQCM sont accessibles gratuitement et d'autres fonctionnalités sont payantes par les utilisateurs qui paient par abonnement forfaitaire.","http://www.evalqcm.fr","https://www.youtube.com/watch?v=qbyVHt-s5H8"]
["Réaliser et administrer des QCM","Peergrade","Plateforme qui permet de donner des consignes pour réaliser un travail, puis l'évaluation par les pairs par un processus automatique","Version gratuite + 1 mois avec l'ensemble des fonctionnalités / en anglais","Créer un compte","https://www.peergrade.io/","https://www.youtube.com/watch?v=XtIwIf20JXY"]
["Création de jeux pédagogique ","Kahoot","Plateforme qui permet de créer des questionnaires en ligne et d’obtenir des réponses en temps réel. Interface colorée et sonore très ludique et un mode \"jumble\" qui permet de proposer des exercices un peu différents du traditionnel QCM.",{"$f":"D11","v":"Version gratuite"},"Créer un compte","https://kahoot.com/","https://youtu.be/Q4v3dUAKceg"]
[{"$f":"A14","v":"Création de jeux pédagogique "},"Plickers","Application multiplateforme permettant d’interroger simultanément et individuellement à une même question de type fermé ou sondage tous les élèves d’une classe en utilisant de simples étiquettes en papier ou carton. Une seule connection internet, pour le professeur","Version gratuite","Créer un compte / 5 questions pour la version gratuite","https://get.plickers.com/","https://youtu.be/lJkmDqvM1fA"]
[{"$f":"A15","v":"Création de jeux pédagogique "},"Quizlet"," Outil pour créer des flashcards ou cartes mémoire en ligne.  Il propose des séries de cartes prêtes à être utilisées. Vous pourrez également créer les vôtres.","Version gratuite","Créer un compte","https://quizlet.com/fr-fr","https://www.youtube.com/watch?v=AaPedIa-ZP8"]
["Création de jeux pédagogiques","LearningApps","Outil de création en ligne de jeux pédagogiques avec des ressources utilisables par tous","Oui","Créer un compte","https://learningapps.org/index.php?category=14&s=","https://www.youtube.com/watch?v=KkX0iPlRLAg"]
["Création de jeux pédagogiques","Educaplay","Créer et trouver des activités éducatives, gérer des groupes, exporter ses ressources et les utiliser dans n'importe quel appareil.","Version gratuite","Créer un compte / nombre de participants limités","https://fr.educaplay.com/","https://www.youtube.com/watch?v=Eyuz-5MmQRk"]
["Partager des fichiers en collaboratif","Google drive",{"$f":"HYPERLINK(\"https://drive.google.com/\",\"Créer une adresse gamail puis\n https://drive.google.com/\")","v":"Créer une adresse gamail puis\n https://drive.google.com/"}]
["Partager des fichiers en collaboratif","Framapad",{"$f":"HYPERLINK(\"https://framapad.org/\",\"https://framapad.org/\")","v":"https://framapad.org/"}]
["Planifier un évènement","Doodle",{"$f":"HYPERLINK(\"http://doodle.com/fr/\",\"http://doodle.com/fr/\")","v":"http://doodle.com/fr/"}]
["Présenter à l’oral des contenus (exposés, notions)","Pow toon",{"$f":"HYPERLINK(\"http://www.powtoon.com/‎\",\"www.powtoon.com/‎\")","v":"www.powtoon.com/‎"}]
["Présenter à l’oral des contenus (exposés, notions)","Prezi",{"$f":"HYPERLINK(\"https://prezi.com/\",\"https://prezi.com\n (demander version public qui est gratuite)\")","v":"https://prezi.com\n (demander version public qui est gratuite)"}]
["Réaliser de la veille informationnelle (RSS)","Netvibes",{"$f":"HYPERLINK(\"http://www.netvibes.com/fr\",\"http://www.netvibes.com/fr\")","v":"http://www.netvibes.com/fr"}]
["Réaliser un schéma de processus","JMOT",{"$f":"HYPERLINK(\"http://www.jfreesoft.com/JMOT/index.html\",\"www.jfreesoft.com/JMOT/index.html\")","v":"www.jfreesoft.com/JMOT/index.html"}]
["Récupérer des vidéos  ","Fluvore",{"$f":"HYPERLINK(\"http://www.fluvore.com/ (pour youtube)\",\"www.fluvore.com/ (pour youtube)\")","v":"www.fluvore.com/ (pour youtube)"}]
["Récupérer des vidéos  ","DownloadHelper (Module complémentaire de Firefox",{"$f":"HYPERLINK(\"https://addons.mozilla.org/fr/firefox/addon/video-downloadhelper/ (tout type de vidéos)\",\"https://addons.mozilla.org/fr/firefox/addon/video-downloadhelper/ \n(tout type de vidéos)\")","v":"https://addons.mozilla.org/fr/firefox/addon/video-downloadhelper/ \n(tout type de vidéos)"}]
["Récupérer des vidéos  ","Freemake Vidéo Downloader à télécharger)",{"$f":"HYPERLINK(\"http://freemake-video-downloader.fr.malavida.com/\",\"http://freemake-video-downloader.fr.malavida.com/\")","v":"http://freemake-video-downloader.fr.malavida.com/"}]
["gestion de projet","Trello","https://trello.com/"]

{"sheet":"Veille informationnelle","index":2,"n_rows":35,"n_cols":7,"rows_kept":35,"cut":false,"hidden":false,"merged":[[4,0,4,6]]}
[]
[]
[null,null,null,null,null,null,"Comité éditorial"]
[]
["QUELS OUTILS NUMERIQUES POUR QUELLES ACTIVITES ?"]
[]
[null,null,"VEILLE INFORMATIONNELLE"]
[]
[]
["Quelles activités ?"," Quels outils ?","Présentation rapide","Gratuité proposée","Contrainte","Adresses","Modes opératoires "]
["Réaliser et administrer des QCM ","Socrative",{"$f":"HYPERLINK(\"http://www.socrative.com/\",\"http://www.socrative.com/\")","v":"http://www.socrative.com/"},{"$f":"HYPERLINK(\"https://www.youtube.com/watch?v=M6iVtc5KRaE&feature=youtu.be\",\"https://www.youtube.com/watch?v=M6iVtc5KRaE&feature=youtu.be\")","v":"https://www.youtube.com/watch?v=M6iVtc5KRaE&feature=youtu.be"}]
["Créer un mur collaboratif","Padlet",{"$f":"HYPERLINK(\"https://fr.padlet.com/\",\"https://fr.padlet.com/\")","v":"https://fr.padlet.com/"},{"$f":"HYPERLINK(\"https://www.youtube.com/watch?v=akWyL8o1qcE\",\"https://www.youtube.com/watch?v=akWyL8o1qcE\")","v":"https://www.youtube.com/watch?v=akWyL8o1qcE"}]
["Créer une carte mentale","Mindomo",{"$f":"HYPERLINK(\"https://www.mindomo.com/\",\"https://www.mindomo.com/\")","v":"https://www.mindomo.com/"},{"$f":"HYPERLINK(\"https://www.youtube.com/watch?v=9I0BEqi8RIs&feature=youtu.be\",\"https://www.youtube.com/watch?v=9I0BEqi8RIs&feature=youtu.be\")","v":"https://www.youtube.com/watch?v=9I0BEqi8RIs&feature=youtu.be"}]
["Créer une carte mentale","Freemind",{"$f":"HYPERLINK(\"http://freemind.sourceforge.net/wiki/index.php/Download\",\"http://freemind.sourceforge.net/wiki/index.php/Download\")","v":"http://freemind.sourceforge.net/wiki/index.php/Download"},{"$f":"HYPERLINK(\"https://www.youtube.com/watch?v=W1z65gNFZuk\",\"https://www.youtube.com/watch?v=W1z65gNFZuk\")","v":"https://www.youtube.com/watch?v=W1z65gNFZuk"}]
["Créer une carte mentale","Mindmeister","https://www.mindmeister.com/fr/account/login?product=1","https://www.youtube.com/watch?v=7DCcetMTtB0"]
["Filmer son écran et enregistrer sa voix","Screencast-o-matic",{"$f":"HYPERLINK(\"http://screencast-o-matic.com/home (à télécharger)\",\"http://screencast-o-matic.com/home (à télécharger)\")","v":"http://screencast-o-matic.com/home (à télécharger)"},{"$f":"HYPERLINK(\"https://www.youtube.com/watch?v=caT0WExlK_w\",\"https://www.youtube.com/watch?v=caT0WExlK_w\")","v":"https://www.youtube.com/watch?v=caT0WExlK_w"}]
["Filmer son écran et enregistrer sa voix","Camstudio",{"$f":"HYPERLINK(\"http://camstudio.org/ ( à télécharger)\",\"http://camstudio.org/ ( à télécharger)\")","v":"http://camstudio.org/ ( à télécharger)"},{"$f":"HYPERLINK(\"https://www.youtube.com/watch?v=563eacE09Vc\",\"https://www.youtube.com/watch?v=563eacE09Vc\")","v":"https://www.youtube.com/watch?v=563eacE09Vc"}]
["Organiser, partager des contenus","Pearltrees",{"$f":"HYPERLINK(\"http://www.pearltrees.com/\",\"http://www.pearltrees.com/\")","v":"http://www.pearltrees.com/"},{"$f":"HYPERLINK(\"https://www.youtube.com/watch?v=l4IFF1dAgOo\",\"https://www.youtube.com/watch?v=l4IFF1dAgOo\")","v":"https://www.youtube.com/watch?v=l4IFF1dAgOo"}]
["Partager des fichiers en collaboratif","Google drive",{"$f":"HYPERLINK(\"https://drive.google.com/\",\"Créer une adresse gamail puis\n https://drive.google.com/\")","v":"Créer une adresse gamail puis\n https://drive.google.com/"},{"$f":"HYPERLINK(\"https://www.youtube.com/watch?v=DLBUvv8hvzM\",\"https://www.youtube.com/watch?v=DLBUvv8hvzM\")","v":"https://www.youtube.com/watch?v=DLBUvv8hvzM"}]
["Partager des fichiers en collaboratif","Framapad",{"$f":"HYPERLINK(\"https://framapad.org/\",\"https://framapad.org/\")","v":"https://framapad.org/"},{"$f":"HYPERLINK(\"https://www.youtube.com/watch?v=x4TuG5yEbp0\",\"https://www.youtube.com/watch?v=x4TuG5yEbp0\")","v":"https://www.youtube.com/watch?v=x4TuG5yEbp0"}]
["Planifier un évènement","Doodle",{"$f":"HYPERLINK(\"http://doodle.com/fr/\",\"http://doodle.com/fr/\")","v":"http://doodle.com/fr/"},{"$f":"HYPERLINK(\"https://www.youtube.com/watch?v=ILKsjBp6ROU\",\"https://www.youtube.com/watch?v=ILKsjBp6ROU\")","v":"https://www.youtube.com/watch?v=ILKsjBp6ROU"}]
["Présenter à l’oral des contenus (exposés, notions)","Pow toon",{"$f":"HYPERLINK(\"http://www.powtoon.com/‎\",\"www.powtoon.com/‎\")","v":"www.powtoon.com/‎"},{"$f":"HYPERLINK(\"https://www.youtube.com/watch?v=apvDAZtZezM\",\"https://www.youtube.com/watch?v=apvDAZtZezM\")","v":"https://www.youtube.com/watch?v=apvDAZtZezM"}]
["Présenter à l’oral des contenus (exposés, notions)","Prezi",{"$f":"HYPERLINK(\"https://prezi.com/\",\"https://prezi.com\n (demander version public qui est gratuite)\")","v":"https://prezi.com\n (demander version public qui est gratuite)"},{"$f":"HYPERLINK(\"https://www.youtube.com/watch?v=93PELFJ1CMw\",\"https://www.youtube.com/watch?v=93PELFJ1CMw\")","v":"https://www.youtube.com/watch?v=93PELFJ1CMw"}]
["Réaliser une veille informationnelle","Twitter","Permet de suivre l'actualité, de la partager et de la diffuser. Outil de marketinfg","Oui",null,"https://twitter.com/","https://www.youtube.com/watch?v=Z8220QxGjv0"]
["Réaliser une veille informationnelle (RSS)","Start.me","Outils permettant d'organiser les sites favoris, les flux RSS...\n","OK","Non utilisable dans certains établissements gérés par la région\nLes session de connections ne gardent pas les favoris.",{"$f":"HYPERLINK(\"https://start.me/fr/what-is-startme\")","v":"https://start.me/fr/what-is-startme"},{"$f":"HYPERLINK(\"https://vimeo.com/293539890\")","v":"https://vimeo.com/293539890"}]
["Réaliser une veille informationnelle (RSS)","Google Alerts","Un service qui envoie des e-mail ou une alerte lorsqu'une nouvelle page web correspondant aux mots-clés que l'on a choisi","OK",null,{"$f":"HYPERLINK(\"https://www.google.fr/alerts\")","v":"https://www.google.fr/alerts"},{"$f":"HYPERLINK(\"https://www.youtube.com/watch?v=hLk8NY38F8Y\")","v":"https://www.youtube.com/watch?v=hLk8NY38F8Y"}]
["Réaliser une veille informationnelle (RSS)","Netvibes","portail web français personnalisable, représentatif du web 2, permet d'organiser sa veille informationnelle","OK",null,{"$f":"HYPERLINK(\"http://www.netvibes.com/fr\",\"http://www.netvibes.com/fr\")","v":"http://www.netvibes.com/fr"},{"$f":"HYPERLINK(\"https://www.youtube.com/watch?v=At_JaeAu8hw\",\"https://www.youtube.com/watch?v=At_JaeAu8hw\")","v":"https://www.youtube.com/watch?v=At_JaeAu8hw"}]
["Réaliser et administrer des QCM ","Evalqcm",null,null,null,{"$f":"HYPERLINK(\"http://www.evalqcm.fr/\",\"http://www.evalqcm.fr\")","v":"http://www.evalqcm.fr"},{"$f":"HYPERLINK(\"https://www.youtube.com/watch?v=qbyVHt-s5H8\",\"https://www.youtube.com/watch?v=qbyVHt-s5H8\")","v":"https://www.youtube.com/watch?v=qbyVHt-s5H8"}]
["Réaliser un schéma de processus","JMOT",null,null,null,{"$f":"HYPERLINK(\"http://www.jfreesoft.com/JMOT/index.html\",\"www.jfreesoft.com/JMOT/index.html\")","v":"www.jfreesoft.com/JMOT/index.html"}]
["Récupérer des vidéos  ","Fluvore",null,null,null,{"$f":"HYPERLINK(\"http://www.fluvore.com/ (pour youtube)\",\"www.fluvore.com/ (pour youtube)\")","v":"www.fluvore.com/ (pour youtube)"}]
["Récupérer des vidéos  ","DownloadHelper (Module complémentaire de Firefox",null,null,null,{"$f":"HYPERLINK(\"https://addons.mozilla.org/fr/firefox/addon/video-downloadhelper/ (tout type de vidéos)\",\"https://addons.mozilla.org/fr/firefox/addon/video-downloadhelper/ \n(tout type de vidéos)\")","v":"https://addons.mozilla.org/fr/firefox/addon/video-downloadhelper/ \n(tout type de vidéos)"},{"$f":"HYPERLINK(\"https://www.youtube.com/watch?v=7YcBkT4PZbg\",\"https://www.youtube.com/watch?v=7YcBkT4PZbg\")","v":"https://www.youtube.com/watch?v=7YcBkT4PZbg"}]
["Récupérer des vidéos  ","Freemake Vidéo Downloader à télécharger)",null,null,null,{"$f":"HYPERLINK(\"http://freemake-video-downloader.fr.malavida.com/\",\"http://freemake-video-downloader.fr.malavida.com/\")","v":"http://freemake-video-downloader.fr.malavida.com/"}]
["gestion de projet","Trello",null,null,null,"https://trello.com/","https://www.youtube.com/watch?v=DqmXYPNrHcw"]
["Organiser, partager des contenus (RSS)","Feedly","Agrégateur de flux RSS, il permet aux utilisateurs de suivre l'actualité, d'organiser, d'exploiter et de partager des pages","Oui mais il existe des formats plus performants en premium ",null,"https://feedly.com/i/welcome","https://www.youtube.com/watch?v=9RRcnw2flL8"]
["Organiser, partager des contenus ","Pearltrees","Permet aux utilisateurs d'organiser, d'exploiter et de partager des pages                    ","Oui mais il existe un format plus performant en premium et education en formule payante",null,"http://www.pearltrees.com/","https://www.youtube.com/watch?v=l4IFF1dAgOo"]

{"sheet":"Présentation orale","index":3,"n_rows":14,"n_cols":7,"rows_kept":14,"cut":false,"hidden":false,"merged":[[4,0,4,6]]}
[]
[]
[null,null,null,null,null,null,"Comité éditorial"]
[]
["QUELS OUTILS NUMERIQUES POUR QUELLES ACTIVITES"]
[]
[null,null,null,"PRESENTATION ORALE"]
[]
[]
["Quelles activités ?"," Quels outils ?","Présentation rapide","Gratuité proposée","Contrainte","Adresses","Modes opératoires"]
["Présenter à l’oral des contenus","Genial.ly","Google Slide permet comme PowerPoint de produire une présentation sous forme de diaporama","Oui",null,"https://app.genial.ly/notifications","https://www.youtube.com/watch?v=BJHbUhBoRg0"]
["Présenter à l’oral des contenus (exposés, notions)","Pow toon","PowToon est un outil pour créer des présentations en ligne. Sur PowToon vous pouvez appliquer plusieurs effets et animer vos présentations et générer une petite vidéo.","Oui, et version payante","Limitée à 3 minutes et 100 MB","www.powtoon.com/‎","https://www.youtube.com/watch?v=apvDAZtZezM"]
["Présenter à l’oral des contenus (exposés, notions)","Prezi","Prezi vous propose de créer en ligne des présentations animées que vous pourrez partager.","La version Basic est gratuite.",null,"https://prezi.com","https://www.youtube.com/watch?v=93PELFJ1CMw"]
["Image interactive","Thinglink","Créez des images interactives en mode public.","Gratuit avec un compte enseignant",null,"https://www.thinglink.com/","https://www.youtube.com/watch?v=TcvRutavGIU"]

{"sheet":"Site web et blog","index":4,"n_rows":32,"n_cols":7,"rows_kept":32,"cut":false,"hidden":false,"merged":[[4,0,4,6]]}
[]
[]
[null,null,null,null,null,null,"Comité éditorial"]
[]
["QUELS OUTILS NUMERIQUES POUR QUELLES ACTIVITES"]
[]
[null,null,"CREATION DE BLOG et SITE WEB"]
[]
[]
["Quelles activités ?"," Quels outils ?","Présentation rapide","Gratuité proposée","Contrainte","Adresses","Modes opératoires"]
["Réaliser et administrer des QCM ","Socrative",{"$f":"HYPERLINK(\"http://www.socrative.com/\",\"http://www.socrative.com/\")","v":"http://www.socrative.com/"},{"$f":"HYPERLINK(\"https://www.youtube.com/watch?v=M6iVtc5KRaE&feature=youtu.be\",\"https://www.youtube.com/watch?v=M6iVtc5KRaE&feature=youtu.be\")","v":"https://www.youtube.com/watch?v=M6iVtc5KRaE&feature=youtu.be"}]
["Créer un mur collaboratif","Padlet",{"$f":"HYPERLINK(\"https://fr.padlet.com/\",\"https://fr.padlet.com/\")","v":"https://fr.padlet.com/"},{"$f":"HYPERLINK(\"https://www.youtube.com/watch?v=akWyL8o1qcE\",\"https://www.youtube.com/watch?v=akWyL8o1qcE\")","v":"https://www.youtube.com/watch?v=akWyL8o1qcE"}]
["Créer une carte mentale","Mindomo",{"$f":"HYPERLINK(\"https://www.mindomo.com/\",\"https://www.mindomo.com/\")","v":"https://www.mindomo.com/"},{"$f":"HYPERLINK(\"https://www.youtube.com/watch?v=9I0BEqi8RIs&feature=youtu.be\",\"https://www.youtube.com/watch?v=9I0BEqi8RIs&feature=youtu.be\")","v":"https://www.youtube.com/watch?v=9I0BEqi8RIs&feature=youtu.be"}]
["Créer une carte mentale","Freemind",{"$f":"HYPERLINK(\"http://freemind.sourceforge.net/wiki/index.php/Download\",\"http://freemind.sourceforge.net/wiki/index.php/Download\")","v":"http://freemind.sourceforge.net/wiki/index.php/Download"},{"$f":"HYPERLINK(\"https://www.youtube.com/watch?v=W1z65gNFZuk\",\"https://www.youtube.com/watch?v=W1z65gNFZuk\")","v":"https://www.youtube.com/watch?v=W1z65gNFZuk"}]
["Créer une carte mentale","Mindmeister","https://www.mindmeister.com/fr/account/login?product=1","https://www.youtube.com/watch?v=7DCcetMTtB0"]
["Filmer son écran et enregistrer sa voix","Screencast-o-matic",{"$f":"HYPERLINK(\"http://screencast-o-matic.com/home (à télécharger)\",\"http://screencast-o-matic.com/home (à télécharger)\")","v":"http://screencast-o-matic.com/home (à télécharger)"},{"$f":"HYPERLINK(\"https://www.youtube.com/watch?v=caT0WExlK_w\",\"https://www.youtube.com/watch?v=caT0WExlK_w\")","v":"https://www.youtube.com/watch?v=caT0WExlK_w"}]
["Filmer son écran et enregistrer sa voix","Camstudio",{"$f":"HYPERLINK(\"http://camstudio.org/ ( à télécharger)\",\"http://camstudio.org/ ( à télécharger)\")","v":"http://camstudio.org/ ( à télécharger)"},{"$f":"HYPERLINK(\"https://www.youtube.com/watch?v=563eacE09Vc\",\"https://www.youtube.com/watch?v=563eacE09Vc\")","v":"https://www.youtube.com/watch?v=563eacE09Vc"}]
["Organiser, partager des contenus","Pearltrees",{"$f":"HYPERLINK(\"http://www.pearltrees.com/\",\"http://www.pearltrees.com/\")","v":"http://www.pearltrees.com/"},{"$f":"HYPERLINK(\"https://www.youtube.com/watch?v=l4IFF1dAgOo\",\"https://www.youtube.com/watch?v=l4IFF1dAgOo\")","v":"https://www.youtube.com/watch?v=l4IFF1dAgOo"}]
["Partager des fichiers en collaboratif","Google drive",{"$f":"HYPERLINK(\"https://drive.google.com/\",\"Créer une adresse gamail puis\n https://drive.google.com/\")","v":"Créer une adresse gamail puis\n https://drive.google.com/"},{"$f":"HYPERLINK(\"https://www.youtube.com/watch?v=DLBUvv8hvzM\",\"https://www.youtube.com/watch?v=DLBUvv8hvzM\")","v":"https://www.youtube.com/watch?v=DLBUvv8hvzM"}]
["Partager des fichiers en collaboratif","Framapad",{"$f":"HYPERLINK(\"https://framapad.org/\",\"https://framapad.org/\")","v":"https://framapad.org/"},{"$f":"HYPERLINK(\"https://www.youtube.com/watch?v=x4TuG5yEbp0\",\"https://www.youtube.com/watch?v=x4TuG5yEbp0\")","v":"https://www.youtube.com/watch?v=x4TuG5yEbp0"}]
["Planifier un évènement","Doodle",{"$f":"HYPERLINK(\"http://doodle.com/fr/\",\"http://doodle.com/fr/\")","v":"http://doodle.com/fr/"},{"$f":"HYPERLINK(\"https://www.youtube.com/watch?v=ILKsjBp6ROU\",\"https://www.youtube.com/watch?v=ILKsjBp6ROU\")","v":"https://www.youtube.com/watch?v=ILKsjBp6ROU"}]
["Réaliser de la veille informationnelle (RSS)","Netvibes",{"$f":"HYPERLINK(\"http://www.netvibes.com/fr\",\"http://www.netvibes.com/fr\")","v":"http://www.netvibes.com/fr"},{"$f":"HYPERLINK(\"https://www.youtube.com/watch?v=At_JaeAu8hw\",\"https://www.youtube.com/watch?v=At_JaeAu8hw\")","v":"https://www.youtube.com/watch?v=At_JaeAu8hw"}]
["Réaliser et administrer des QCM ","Evalqcm",{"$f":"HYPERLINK(\"http://www.evalqcm.fr/\",\"http://www.evalqcm.fr\")","v":"http://www.evalqcm.fr"},{"$f":"HYPERLINK(\"https://www.youtube.com/watch?v=qbyVHt-s5H8\",\"https://www.youtube.com/watch?v=qbyVHt-s5H8\")","v":"https://www.youtube.com/watch?v=qbyVHt-s5H8"}]
["Réaliser un schéma de processus","JMOT",{"$f":"HYPERLINK(\"http://www.jfreesoft.com/JMOT/index.html\",\"www.jfreesoft.com/JMOT/index.html\")","v":"www.jfreesoft.com/JMOT/index.html"}]
["Récupérer des vidéos  ","Fluvore",{"$f":"HYPERLINK(\"http://www.fluvore.com/ (pour youtube)\",\"www.fluvore.com/ (pour youtube)\")","v":"www.fluvore.com/ (pour youtube)"}]
["Récupérer des vidéos  ","DownloadHelper (Module complémentaire de Firefox",{"$f":"HYPERLINK(\"https://addons.mozilla.org/fr/firefox/addon/video-downloadhelper/ (tout type de vidéos)\",\"https://addons.mozilla.org/fr/firefox/addon/video-downloadhelper/ \n(tout type de vidéos)\")","v":"https://addons.mozilla.org/fr/firefox/addon/video-downloadhelper/ \n(tout type de vidéos)"},{"$f":"HYPERLINK(\"https://www.youtube.com/watch?v=7YcBkT4PZbg\",\"https://www.youtube.com/watch?v=7YcBkT4PZbg\")","v":"https://www.youtube.com/watch?v=7YcBkT4PZbg"}]
["Récupérer des vidéos  ","Freemake Vidéo Downloader à télécharger)",{"$f":"HYPERLINK(\"http://freemake-video-downloader.fr.malavida.com/\",\"http://freemake-video-downloader.fr.malavida.com/\")","v":"http://freemake-video-downloader.fr.malavida.com/"}]
["gestion de projet","Trello","https://trello.com/","https://www.youtube.com/watch?v=DqmXYPNrHcw"]
[{"$f":"A30","v":"Partager et communiquer via un blog ou un site"},"Wordpress",{"$f":"C30","v":"Espace permettant de construire un site internet en ligne\navec des fonctions copier coller et insertion d'applications multimédia"},"Oui",null,"https://fr.wordpress.com/","https://www.youtube.com/watch?v=2ih2-QXWTX4"]
["Partager et communiquer via un blog ou un site","Jimdo","Espace permettant de construire un site internet en ligne\navec des fonctions copier coller et insertion d'applications multimédia","Oui",null,{"$f":"HYPERLINK(\"https://fr.jimdo.com/#ref=a890519\")","v":"https://fr.jimdo.com/#ref=a890519"},{"$f":"HYPERLINK(\"https://www.youtube.com/watch?v=-0T7hv01uQY\")","v":"https://www.youtube.com/watch?v=-0T7hv01uQY"}]
["Partager et communiquer via un blog ou un site","Wix","Idem mais le plus perfomant actuellement.\nCelui qui offre le plus de fonctionnalités","Oui",null,{"$f":"HYPERLINK(\"https://fr.wix.com/\")","v":"https://fr.wix.com/"},{"$f":"HYPERLINK(\"https://www.youtube.com/watch?v=AUgW8DE9eFg\")","v":"https://www.youtube.com/watch?v=AUgW8DE9eFg"}]
["Partager et communiquer via un blog ou un site","e-monsite","Système de gestion de contenu","Oui",null,{"$f":"HYPERLINK(\"https://www.e-monsite.com/\")","v":"https://www.e-monsite.com/"},{"$f":"HYPERLINK(\"https://www.youtube.com/watch?v=-RxlPAxclxU\")","v":"https://www.youtube.com/watch?v=-RxlPAxclxU"}]

{"sheet":"Mur collaboratif","index":5,"n_rows":33,"n_cols":7,"rows_kept":33,"cut":false,"hidden":false,"merged":[[4,0,4,6]]}
[]
[]
[null,null,null,null,null,null,"Comité éditorial"]
[]
["QUELS OUTILS NUMERIQUES POUR QUELLES ACTIVITES ?"]
[]
[null,null,"MURS COLLABORATIFS"]
[]
[]
[]
[]
["Quelles activités ?"," Quels outils ?","Présentation rapide","Gratuité proposée","Contrainte","Adresses","Modes opératoires"]
["Réaliser et administrer des QCM ","Socrative",{"$f":"HYPERLINK(\"http://www.socrative.com/\",\"http://www.socrative.com/\")","v":"http://www.socrative.com/"},{"$f":"HYPERLINK(\"https://www.youtube.com/watch?v=M6iVtc5KRaE&feature=youtu.be\",\"https://www.youtube.com/watch?v=M6iVtc5KRaE&feature=youtu.be\")","v":"https://www.youtube.com/watch?v=M6iVtc5KRaE&feature=youtu.be"},"https://fr.padlet.com/","https://www.youtube.com/watch?v=akWyL8o1qcE"]
["Créer un mur collaboratif","Padlet","Un outil TICE en ligne permettant de créer et partager un mur de message. Tableau blanc virtuel où les étudiants apposent leurs idées avec des posts.","Dans la limite de 3 murs par personne et dans la limite de 10 Mo.\nSinon version mensuelle payante"," Nécessite une connexion et une inscription",{"$f":"HYPERLINK(\"https://fr.padlet.com/\",\"https://fr.padlet.com/\")","v":"https://fr.padlet.com/"},{"$f":"HYPERLINK(\"https://www.youtube.com/watch?v=akWyL8o1qcE\")","v":"https://www.youtube.com/watch?v=akWyL8o1qcE"}]
["Créer une carte mentale","Mindomo",{"$f":"HYPERLINK(\"https://www.mindomo.com/\",\"https://www.mindomo.com/\")","v":"https://www.mindomo.com/"},{"$f":"HYPERLINK(\"https://www.youtube.com/watch?v=9I0BEqi8RIs&feature=youtu.be\",\"https://www.youtube.com/watch?v=9I0BEqi8RIs&feature=youtu.be\")","v":"https://www.youtube.com/watch?v=9I0BEqi8RIs&feature=youtu.be"}]
["Créer une carte mentale","Freemind",{"$f":"HYPERLINK(\"http://freemind.sourceforge.net/wiki/index.php/Download\",\"http://freemind.sourceforge.net/wiki/index.php/Download\")","v":"http://freemind.sourceforge.net/wiki/index.php/Download"},{"$f":"HYPERLINK(\"https://www.youtube.com/watch?v=W1z65gNFZuk\",\"https://www.youtube.com/watch?v=W1z65gNFZuk\")","v":"https://www.youtube.com/watch?v=W1z65gNFZuk"}]
["Créer une carte mentale","Mindmeister","https://www.mindmeister.com/fr/account/login?product=1","https://www.youtube.com/watch?v=7DCcetMTtB0"]
["Filmer son écran et enregistrer sa voix","Screencast-o-matic",{"$f":"HYPERLINK(\"http://screencast-o-matic.com/home (à télécharger)\",\"http://screencast-o-matic.com/home (à télécharger)\")","v":"http://screencast-o-matic.com/home (à télécharger)"},{"$f":"HYPERLINK(\"https://www.youtube.com/watch?v=caT0WExlK_w\",\"https://www.youtube.com/watch?v=caT0WExlK_w\")","v":"https://www.youtube.com/watch?v=caT0WExlK_w"}]
["Filmer son écran et enregistrer sa voix","Camstudio",{"$f":"HYPERLINK(\"http://camstudio.org/ ( à télécharger)\",\"http://camstudio.org/ ( à télécharger)\")","v":"http://camstudio.org/ ( à télécharger)"},{"$f":"HYPERLINK(\"https://www.youtube.com/watch?v=563eacE09Vc\",\"https://www.youtube.com/watch?v=563eacE09Vc\")","v":"https://www.youtube.com/watch?v=563eacE09Vc"}]
["Organiser, partager des contenus","Pearltrees",{"$f":"HYPERLINK(\"http://www.pearltrees.com/\",\"http://www.pearltrees.com/\")","v":"http://www.pearltrees.com/"},{"$f":"HYPERLINK(\"https://www.youtube.com/watch?v=l4IFF1dAgOo\",\"https://www.youtube.com/watch?v=l4IFF1dAgOo\")","v":"https://www.youtube.com/watch?v=l4IFF1dAgOo"}]
["Partager des fichiers en collaboratif","Google drive",{"$f":"HYPERLINK(\"https://drive.google.com/\",\"Créer une adresse gamail puis\n https://drive.google.com/\")","v":"Créer une adresse gamail puis\n https://drive.google.com/"},{"$f":"HYPERLINK(\"https://www.youtube.com/watch?v=DLBUvv8hvzM\",\"https://www.youtube.com/watch?v=DLBUvv8hvzM\")","v":"https://www.youtube.com/watch?v=DLBUvv8hvzM"}]
["Partager des fichiers en collaboratif","Framapad",{"$f":"HYPERLINK(\"https://framapad.org/\",\"https://framapad.org/\")","v":"https://framapad.org/"},{"$f":"HYPERLINK(\"https://www.youtube.com/watch?v=x4TuG5yEbp0\",\"https://www.youtube.com/watch?v=x4TuG5yEbp0\")","v":"https://www.youtube.com/watch?v=x4TuG5yEbp0"}]
["Planifier un évènement","Doodle",{"$f":"HYPERLINK(\"http://doodle.com/fr/\",\"http://doodle.com/fr/\")","v":"http://doodle.com/fr/"},{"$f":"HYPERLINK(\"https://www.youtube.com/watch?v=ILKsjBp6ROU\",\"https://www.youtube.com/watch?v=ILKsjBp6ROU\")","v":"https://www.youtube.com/watch?v=ILKsjBp6ROU"}]
["Présenter à l’oral des contenus (exposés, notions)","Pow toon",{"$f":"HYPERLINK(\"http://www.powtoon.com/‎\",\"www.powtoon.com/‎\")","v":"www.powtoon.com/‎"},{"$f":"HYPERLINK(\"https://www.youtube.com/watch?v=apvDAZtZezM\",\"https://www.youtube.com/watch?v=apvDAZtZezM\")","v":"https://www.youtube.com/watch?v=apvDAZtZezM"}]
["Présenter à l’oral des contenus (exposés, notions)","Prezi",{"$f":"HYPERLINK(\"https://prezi.com/\",\"https://prezi.com\n (demander version public qui est gratuite)\")","v":"https://prezi.com\n (demander version public qui est gratuite)"},{"$f":"HYPERLINK(\"https://www.youtube.com/watch?v=93PELFJ1CMw\",\"https://www.youtube.com/watch?v=93PELFJ1CMw\")","v":"https://www.youtube.com/watch?v=93PELFJ1CMw"}]
["Réaliser de la veille informationnelle (RSS)","Netvibes",{"$f":"HYPERLINK(\"http://www.netvibes.com/fr\",\"http://www.netvibes.com/fr\")","v":"http://www.netvibes.com/fr"},{"$f":"HYPERLINK(\"https://www.youtube.com/watch?v=At_JaeAu8hw\",\"https://www.youtube.com/watch?v=At_JaeAu8hw\")","v":"https://www.youtube.com/watch?v=At_JaeAu8hw"}]
["Réaliser et administrer des QCM ","Evalqcm",{"$f":"HYPERLINK(\"http://www.evalqcm.fr/\",\"http://www.evalqcm.fr\")","v":"http://www.evalqcm.fr"},{"$f":"HYPERLINK(\"https://www.youtube.com/watch?v=qbyVHt-s5H8\",\"https://www.youtube.com/watch?v=qbyVHt-s5H8\")","v":"https://www.youtube.com/watch?v=qbyVHt-s5H8"}]
["Réaliser un schéma de processus","JMOT",{"$f":"HYPERLINK(\"http://www.jfreesoft.com/JMOT/index.html\",\"www.jfreesoft.com/JMOT/index.html\")","v":"www.jfreesoft.com/JMOT/index.html"}]
["Récupérer des vidéos  ","Fluvore",{"$f":"HYPERLINK(\"http://www.fluvore.com/ (pour youtube)\",\"www.fluvore.com/ (pour youtube)\")","v":"www.fluvore.com/ (pour youtube)"}]
["Récupérer des vidéos  ","DownloadHelper (Module complémentaire de Firefox",{"$f":"HYPERLINK(\"https://addons.mozilla.org/fr/firefox/addon/video-downloadhelper/ (tout type de vidéos)\",\"https://addons.mozilla.org/fr/firefox/addon/video-downloadhelper/ \n(tout type de vidéos)\")","v":"https://addons.mozilla.org/fr/firefox/addon/video-downloadhelper/ \n(tout type de vidéos)"},{"$f":"HYPERLINK(\"https://www.youtube.com/watch?v=7YcBkT4PZbg\",\"https://www.youtube.com/watch?v=7YcBkT4PZbg\")","v":"https://www.youtube.com/watch?v=7YcBkT4PZbg"}]
["Récupérer des vidéos  ","Freemake Vidéo Downloader à télécharger)",{"$f":"HYPERLINK(\"http://freemake-video-downloader.fr.malavida.com/\",\"http://freemake-video-downloader.fr.malavida.com/\")","v":"http://freemake-video-downloader.fr.malavida.com/"}]
["gestion de projet","Trello","https://trello.com/","https://www.youtube.com/watch?v=DqmXYPNrHcw"]
[{"$f":"A14","v":"Créer un mur collaboratif"},"Middelspot","Tableau blanc, murs virtuels partageables. Utilisable sur ordinateurs, tablettes, téléphone","Outil gratuit ","Famille Gsuite","https://middlespot.com","https://www.youtube.com/watch?v=EEGBdrESL1c"]

{"sheet":"Base","index":6,"n_rows":30,"n_cols":4,"rows_kept":30,"cut":false,"hidden":false,"merged":[[4,0,4,3]]}
[]
[]
[null,null,null,"Comité éditorial"]
[]
["QUELS OUTILS NUMERIQUES POUR QUELLES ACTIVITES ?"]
[]
[]
[]
[]
["Quelles activités ?"," Quels outils ?"," Quelles adresses ?","Quels modes opératoires ?"]
["Réaliser et administrer des QCM ","Socrative",{"$f":"HYPERLINK(\"http://www.socrative.com/\",\"http://www.socrative.com/\")","v":"http://www.socrative.com/"},{"$f":"HYPERLINK(\"https://www.youtube.com/watch?v=M6iVtc5KRaE&feature=youtu.be\",\"https://www.youtube.com/watch?v=M6iVtc5KRaE&feature=youtu.be\")","v":"https://www.youtube.com/watch?v=M6iVtc5KRaE&feature=youtu.be"}]
["Créer un mur collaboratif","BDD TICE",{"$f":"HYPERLINK(\"http://bdd-tice.weebly.com/\")","v":"http://bdd-tice.weebly.com/"},"http://bdd-tice.weebly.com/info.html"]
["Créer une carte mentale","Mindomo",{"$f":"HYPERLINK(\"https://www.mindomo.com/\",\"https://www.mindomo.com/\")","v":"https://www.mindomo.com/"},{"$f":"HYPERLINK(\"https://www.youtube.com/watch?v=9I0BEqi8RIs&feature=youtu.be\",\"https://www.youtube.com/watch?v=9I0BEqi8RIs&feature=youtu.be\")","v":"https://www.youtube.com/watch?v=9I0BEqi8RIs&feature=youtu.be"}]
["Créer une carte mentale","Freemind",{"$f":"HYPERLINK(\"http://freemind.sourceforge.net/wiki/index.php/Download\",\"http://freemind.sourceforge.net/wiki/index.php/Download\")","v":"http://freemind.sourceforge.net/wiki/index.php/Download"},{"$f":"HYPERLINK(\"https://www.youtube.com/watch?v=W1z65gNFZuk\",\"https://www.youtube.com/watch?v=W1z65gNFZuk\")","v":"https://www.youtube.com/watch?v=W1z65gNFZuk"}]
["Créer une carte mentale","Mindmeister","https://www.mindmeister.com/fr/account/login?product=1","https://www.youtube.com/watch?v=7DCcetMTtB0"]
["Filmer son écran et enregistrer sa voix","Screencast-o-matic",{"$f":"HYPERLINK(\"http://screencast-o-matic.com/home (à télécharger)\",\"http://screencast-o-matic.com/home (à télécharger)\")","v":"http://screencast-o-matic.com/home (à télécharger)"},{"$f":"HYPERLINK(\"https://www.youtube.com/watch?v=caT0WExlK_w\",\"https://www.youtube.com/watch?v=caT0WExlK_w\")","v":"https://www.youtube.com/watch?v=caT0WExlK_w"}]
["Filmer son écran et enregistrer sa voix","Camstudio",{"$f":"HYPERLINK(\"http://camstudio.org/ ( à télécharger)\",\"http://camstudio.org/ ( à télécharger)\")","v":"http://camstudio.org/ ( à télécharger)"},{"$f":"HYPERLINK(\"https://www.youtube.com/watch?v=563eacE09Vc\",\"https://www.youtube.com/watch?v=563eacE09Vc\")","v":"https://www.youtube.com/watch?v=563eacE09Vc"}]
["Organiser, partager des contenus","Pearltrees",{"$f":"HYPERLINK(\"http://www.pearltrees.com/\",\"http://www.pearltrees.com/\")","v":"http://www.pearltrees.com/"},{"$f":"HYPERLINK(\"https://www.youtube.com/watch?v=l4IFF1dAgOo\",\"https://www.youtube.com/watch?v=l4IFF1dAgOo\")","v":"https://www.youtube.com/watch?v=l4IFF1dAgOo"}]
["Partager des fichiers en collaboratif","Google drive",{"$f":"HYPERLINK(\"https://drive.google.com/\",\"Créer une adresse gamail puis\n https://drive.google.com/\")","v":"Créer une adresse gamail puis\n https://drive.google.com/"},{"$f":"HYPERLINK(\"https://www.youtube.com/watch?v=DLBUvv8hvzM\",\"https://www.youtube.com/watch?v=DLBUvv8hvzM\")","v":"https://www.youtube.com/watch?v=DLBUvv8hvzM"}]
["Partager des fichiers en collaboratif","Framapad",{"$f":"HYPERLINK(\"https://framapad.org/\",\"https://framapad.org/\")","v":"https://framapad.org/"},{"$f":"HYPERLINK(\"https://www.youtube.com/watch?v=x4TuG5yEbp0\",\"https://www.youtube.com/watch?v=x4TuG5yEbp0\")","v":"https://www.youtube.com/watch?v=x4TuG5yEbp0"}]
["Planifier un évènement","Doodle",{"$f":"HYPERLINK(\"http://doodle.com/fr/\",\"http://doodle.com/fr/\")","v":"http://doodle.com/fr/"},{"$f":"HYPERLINK(\"https://www.youtube.com/watch?v=ILKsjBp6ROU\",\"https://www.youtube.com/watch?v=ILKsjBp6ROU\")","v":"https://www.youtube.com/watch?v=ILKsjBp6ROU"}]
["Présenter à l’oral des contenus (exposés, notions)","Pow toon",{"$f":"HYPERLINK(\"http://www.powtoon.com/‎\",\"www.powtoon.com/‎\")","v":"www.powtoon.com/‎"},{"$f":"HYPERLINK(\"https://www.youtube.com/watch?v=apvDAZtZezM\",\"https://www.youtube.com/watch?v=apvDAZtZezM\")","v":"https://www.youtube.com/watch?v=apvDAZtZezM"}]
["Présenter à l’oral des contenus (exposés, notions)","Prezi",{"$f":"HYPERLINK(\"https://prezi.com/\",\"https://prezi.com\n (demander version public qui est gratuite)\")","v":"https://prezi.com\n (demander version public qui est gratuite)"},{"$f":"HYPERLINK(\"https://www.youtube.com/watch?v=93PELFJ1CMw\",\"https://www.youtube.com/watch?v=93PELFJ1CMw\")","v":"https://www.youtube.com/watch?v=93PELFJ1CMw"}]
["Réaliser de la veille informationnelle (RSS)","Netvibes",{"$f":"HYPERLINK(\"http://www.netvibes.com/fr\",\"http://www.netvibes.com/fr\")","v":"http://www.netvibes.com/fr"},{"$f":"HYPERLINK(\"https://www.youtube.com/watch?v=At_JaeAu8hw\",\"https://www.youtube.com/watch?v=At_JaeAu8hw\")","v":"https://www.youtube.com/watch?v=At_JaeAu8hw"}]
["Réaliser et administrer des QCM ","Evalqcm",{"$f":"HYPERLINK(\"http://www.evalqcm.fr/\",\"http://www.evalqcm.fr\")","v":"http://www.evalqcm.fr"},{"$f":"HYPERLINK(\"https://www.youtube.com/watch?v=qbyVHt-s5H8\",\"https://www.youtube.com/watch?v=qbyVHt-s5H8\")","v":"https://www.youtube.com/watch?v=qbyVHt-s5H8"}]
["Réaliser un schéma de processus","JMOT",{"$f":"HYPERLINK(\"http://www.jfreesoft.com/JMOT/index.html\",\"www.jfreesoft.com/JMOT/index.html\")","v":"www.jfreesoft.com/JMOT/index.html"}]
["Récupérer des vidéos  ","Fluvore",{"$f":"HYPERLINK(\"http://www.fluvore.com/ (pour youtube)\",\"www.fluvore.com/ (pour youtube)\")","v":"www.fluvore.com/ (pour youtube)"}]
["Récupérer des vidéos  ","DownloadHelper (Module complémentaire de Firefox",{"$f":"HYPERLINK(\"https://addons.mozilla.org/fr/firefox/addon/video-downloadhelper/ (tout type de vidéos)\",\"https://addons.mozilla.org/fr/firefox/addon/video-downloadhelper/ \n(tout type de vidéos)\")","v":"https://addons.mozilla.org/fr/firefox/addon/video-downloadhelper/ \n(tout type de vidéos)"},{"$f":"HYPERLINK(\"https://www.youtube.com/watch?v=7YcBkT4PZbg\",\"https://www.youtube.com/watch?v=7YcBkT4PZbg\")","v":"https://www.youtube.com/watch?v=7YcBkT4PZbg"}]
["Récupérer des vidéos  ","Freemake Vidéo Downloader à télécharger)",{"$f":"HYPERLINK(\"http://freemake-video-downloader.fr.malavida.com/\",\"http://freemake-video-downloader.fr.malavida.com/\")","v":"http://freemake-video-downloader.fr.malavida.com/"}]
["gestion de projet","Trello","https://trello.com/","https://www.youtube.com/watch?v=DqmXYPNrHcw"]

{"sheet":"Cartes mentales","index":7,"n_rows":30,"n_cols":7,"rows_kept":30,"cut":false,"hidden":false,"merged":[[4,0,4,6]]}
[]
[]
[null,null,null,null,null,null,"Comité éditorial"]
[]
["QUELS OUTILS NUMERIQUES POUR QUELLES ACTIVITES ?"]
[]
[null,null,"CARTES MENTALES"]
[]
[]
["Quelles activités ?"," Quels outils ?","Présentation rapide","Gratuité proposée","Contrainte","Adresses","Modes opératoires"]
["Réaliser et administrer des QCM ","Socrative",{"$f":"HYPERLINK(\"http://www.socrative.com/\",\"http://www.socrative.com/\")","v":"http://www.socrative.com/"},{"$f":"HYPERLINK(\"https://www.youtube.com/watch?v=M6iVtc5KRaE&feature=youtu.be\",\"https://www.youtube.com/watch?v=M6iVtc5KRaE&feature=youtu.be\")","v":"https://www.youtube.com/watch?v=M6iVtc5KRaE&feature=youtu.be"}]
["Créer un mur collaboratif","Padlet",{"$f":"HYPERLINK(\"https://fr.padlet.com/\",\"https://fr.padlet.com/\")","v":"https://fr.padlet.com/"},{"$f":"HYPERLINK(\"https://www.youtube.com/watch?v=akWyL8o1qcE\",\"https://www.youtube.com/watch?v=akWyL8o1qcE\")","v":"https://www.youtube.com/watch?v=akWyL8o1qcE"}]
["Créer une carte mentale","Mindomo","Cartes mentales et conceptuelles, listes et diagrammes de Gantt","Version gratuite avec seulement 3 cartes",null,"https://www.mindomo.com/","https://www.youtube.com/watch?v=9I0BEqi8RIs&feature=youtu.be"]
["Créer une carte mentale","Mindmeister","Outil de cartographie mentale en ligne","Version gratuite avec seulement 3 cartes","Créer des comptes","https://www.mindmeister.com/fr/account/login?product=1","https://www.youtube.com/watch?v=7DCcetMTtB0"]
["Filmer son écran et enregistrer sa voix","Screencast-o-matic","Framindmap permet de créer des cartes mentales (aussi appelées « cartes heuristiques »).","Ok","Aucune","http://ideateur.planete-education.com/#","https://vimeo.com/293539689"]
["Filmer son écran et enregistrer sa voix","Camstudio",null,null,null,{"$f":"HYPERLINK(\"http://camstudio.org/ ( à télécharger)\",\"http://camstudio.org/ ( à télécharger)\")","v":"http://camstudio.org/ ( à télécharger)"},{"$f":"HYPERLINK(\"https://www.youtube.com/watch?v=563eacE09Vc\",\"https://www.youtube.com/watch?v=563eacE09Vc\")","v":"https://www.youtube.com/watch?v=563eacE09Vc"}]
["Organiser, partager des contenus","Pearltrees",null,null,null,{"$f":"HYPERLINK(\"http://www.pearltrees.com/\",\"http://www.pearltrees.com/\")","v":"http://www.pearltrees.com/"},{"$f":"HYPERLINK(\"https://www.youtube.com/watch?v=l4IFF1dAgOo\",\"https://www.youtube.com/watch?v=l4IFF1dAgOo\")","v":"https://www.youtube.com/watch?v=l4IFF1dAgOo"}]
["Partager des fichiers en collaboratif","Google drive",null,null,null,{"$f":"HYPERLINK(\"https://drive.google.com/\",\"Créer une adresse gamail puis\n https://drive.google.com/\")","v":"Créer une adresse gamail puis\n https://drive.google.com/"},{"$f":"HYPERLINK(\"https://www.youtube.com/watch?v=DLBUvv8hvzM\",\"https://www.youtube.com/watch?v=DLBUvv8hvzM\")","v":"https://www.youtube.com/watch?v=DLBUvv8hvzM"}]
["Partager des fichiers en collaboratif","Framapad",null,null,null,{"$f":"HYPERLINK(\"https://framapad.org/\",\"https://framapad.org/\")","v":"https://framapad.org/"},{"$f":"HYPERLINK(\"https://www.youtube.com/watch?v=x4TuG5yEbp0\",\"https://www.youtube.com/watch?v=x4TuG5yEbp0\")","v":"https://www.youtube.com/watch?v=x4TuG5yEbp0"}]
["Planifier un évènement","Doodle",null,null,null,{"$f":"HYPERLINK(\"http://doodle.com/fr/\",\"http://doodle.com/fr/\")","v":"http://doodle.com/fr/"},{"$f":"HYPERLINK(\"https://www.youtube.com/watch?v=ILKsjBp6ROU\",\"https://www.youtube.com/watch?v=ILKsjBp6ROU\")","v":"https://www.youtube.com/watch?v=ILKsjBp6ROU"}]
["Présenter à l’oral des contenus (exposés, notions)","Pow toon",null,null,null,{"$f":"HYPERLINK(\"http://www.powtoon.com/‎\",\"www.powtoon.com/‎\")","v":"www.powtoon.com/‎"},{"$f":"HYPERLINK(\"https://www.youtube.com/watch?v=apvDAZtZezM\",\"https://www.youtube.com/watch?v=apvDAZtZezM\")","v":"https://www.youtube.com/watch?v=apvDAZtZezM"}]
["Présenter à l’oral des contenus (exposés, notions)","Prezi",null,null,null,{"$f":"HYPERLINK(\"https://prezi.com/\",\"https://prezi.com\n (demander version public qui est gratuite)\")","v":"https://prezi.com\n (demander version public qui est gratuite)"},{"$f":"HYPERLINK(\"https://www.youtube.com/watch?v=93PELFJ1CMw\",\"https://www.youtube.com/watch?v=93PELFJ1CMw\")","v":"https://www.youtube.com/watch?v=93PELFJ1CMw"}]
["Réaliser de la veille informationnelle (RSS)","Netvibes",null,null,null,{"$f":"HYPERLINK(\"http://www.netvibes.com/fr\",\"http://www.netvibes.com/fr\")","v":"http://www.netvibes.com/fr"},{"$f":"HYPERLINK(\"https://www.youtube.com/watch?v=At_JaeAu8hw\",\"https://www.youtube.com/watch?v=At_JaeAu8hw\")","v":"https://www.youtube.com/watch?v=At_JaeAu8hw"}]
["Réaliser et administrer des QCM ","Evalqcm",null,null,null,{"$f":"HYPERLINK(\"http://www.evalqcm.fr/\",\"http://www.evalqcm.fr\")","v":"http://www.evalqcm.fr"},{"$f":"HYPERLINK(\"https://www.youtube.com/watch?v=qbyVHt-s5H8\",\"https://www.youtube.com/watch?v=qbyVHt-s5H8\")","v":"https://www.youtube.com/watch?v=qbyVHt-s5H8"}]
["Réaliser un schéma de processus","JMOT",null,null,null,{"$f":"HYPERLINK(\"http://www.jfreesoft.com/JMOT/index.html\",\"www.jfreesoft.com/JMOT/index.html\")","v":"www.jfreesoft.com/JMOT/index.html"}]
["Récupérer des vidéos  ","Fluvore",null,null,null,{"$f":"HYPERLINK(\"http://www.fluvore.com/ (pour youtube)\",\"www.fluvore.com/ (pour youtube)\")","v":"www.fluvore.com/ (pour youtube)"}]
["Récupérer des vidéos  ","DownloadHelper (Module complémentaire de Firefox",null,null,null,{"$f":"HYPERLINK(\"https://addons.mozilla.org/fr/firefox/addon/video-downloadhelper/ (tout type de vidéos)\",\"https://addons.mozilla.org/fr/firefox/addon/video-downloadhelper/ \n(tout type de vidéos)\")","v":"https://addons.mozilla.org/fr/firefox/addon/video-downloadhelper/ \n(tout type de vidéos)"},{"$f":"HYPERLINK(\"https://www.youtube.com/watch?v=7YcBkT4PZbg\",\"https://www.youtube.com/watch?v=7YcBkT4PZbg\")","v":"https://www.youtube.com/watch?v=7YcBkT4PZbg"}]
["Récupérer des vidéos  ","Freemake Vidéo Downloader à télécharger)",null,null,null,{"$f":"HYPERLINK(\"http://freemake-video-downloader.fr.malavida.com/\",\"http://freemake-video-downloader.fr.malavida.com/\")","v":"http://freemake-video-downloader.fr.malavida.com/"}]
["gestion de projet","Trello",null,null,null,"https://trello.com/","https://www.youtube.com/watch?v=DqmXYPNrHcw"]
["Créer une carte mentale","Ideateur","Framindmap permet de créer des cartes mentales (aussi appelées « cartes heuristiques »).","Oui","Aucune","http://ideateur.planete-education.com/#","https://vimeo.com/293539689"]

{"sheet":"Filmer son écran","index":8,"n_rows":32,"n_cols":7,"rows_kept":32,"cut":false,"hidden":false,"merged":[[4,0,4,6]]}
[]
[]
[null,null,null,null,null,null,"Comité éditorial"]
[]
["QUELS OUTILS NUMERIQUES POUR QUELLES ACTIVITES ?"]
[]
[null,null,"CAPTURE AUDIO et VIDEO"]
[]
[]
["Quelles activités ?"," Quels outils ?","Présentation rapide","Gratuité proposée","Contrainte","Adresses","Modes opératoires"]
["Réaliser et administrer des QCM ","Socrative",{"$f":"HYPERLINK(\"http://www.socrative.com/\",\"http://www.socrative.com/\")","v":"http://www.socrative.com/"},{"$f":"HYPERLINK(\"https://www.youtube.com/watch?v=M6iVtc5KRaE&feature=youtu.be\",\"https://www.youtube.com/watch?v=M6iVtc5KRaE&feature=youtu.be\")","v":"https://www.youtube.com/watch?v=M6iVtc5KRaE&feature=youtu.be"}]
["Créer un mur collaboratif","Padlet",{"$f":"HYPERLINK(\"https://fr.padlet.com/\",\"https://fr.padlet.com/\")","v":"https://fr.padlet.com/"},{"$f":"HYPERLINK(\"https://www.youtube.com/watch?v=akWyL8o1qcE\",\"https://www.youtube.com/watch?v=akWyL8o1qcE\")","v":"https://www.youtube.com/watch?v=akWyL8o1qcE"}]
["Créer une carte mentale","Mindomo",{"$f":"HYPERLINK(\"https://www.mindomo.com/\",\"https://www.mindomo.com/\")","v":"https://www.mindomo.com/"},{"$f":"HYPERLINK(\"https://www.youtube.com/watch?v=9I0BEqi8RIs&feature=youtu.be\",\"https://www.youtube.com/watch?v=9I0BEqi8RIs&feature=youtu.be\")","v":"https://www.youtube.com/watch?v=9I0BEqi8RIs&feature=youtu.be"}]
["Créer une carte mentale","Freemind",{"$f":"HYPERLINK(\"http://freemind.sourceforge.net/wiki/index.php/Download\",\"http://freemind.sourceforge.net/wiki/index.php/Download\")","v":"http://freemind.sourceforge.net/wiki/index.php/Download"},{"$f":"HYPERLINK(\"https://www.youtube.com/watch?v=W1z65gNFZuk\",\"https://www.youtube.com/watch?v=W1z65gNFZuk\")","v":"https://www.youtube.com/watch?v=W1z65gNFZuk"}]
["Créer une carte mentale","Mindmeister","https://www.mindmeister.com/fr/account/login?product=1","https://www.youtube.com/watch?v=7DCcetMTtB0"]
["Organiser, partager des contenus","Pearltrees",{"$f":"HYPERLINK(\"http://www.pearltrees.com/\",\"http://www.pearltrees.com/\")","v":"http://www.pearltrees.com/"},{"$f":"HYPERLINK(\"https://www.youtube.com/watch?v=l4IFF1dAgOo\",\"https://www.youtube.com/watch?v=l4IFF1dAgOo\")","v":"https://www.youtube.com/watch?v=l4IFF1dAgOo"}]
["Partager des fichiers en collaboratif","Google drive",{"$f":"HYPERLINK(\"https://drive.google.com/\",\"Créer une adresse gamail puis\n https://drive.google.com/\")","v":"Créer une adresse gamail puis\n https://drive.google.com/"},{"$f":"HYPERLINK(\"https://www.youtube.com/watch?v=DLBUvv8hvzM\",\"https://www.youtube.com/watch?v=DLBUvv8hvzM\")","v":"https://www.youtube.com/watch?v=DLBUvv8hvzM"}]
["Partager des fichiers en collaboratif","Framapad",{"$f":"HYPERLINK(\"https://framapad.org/\",\"https://framapad.org/\")","v":"https://framapad.org/"},{"$f":"HYPERLINK(\"https://www.youtube.com/watch?v=x4TuG5yEbp0\",\"https://www.youtube.com/watch?v=x4TuG5yEbp0\")","v":"https://www.youtube.com/watch?v=x4TuG5yEbp0"}]
["Planifier un évènement","Doodle",{"$f":"HYPERLINK(\"http://doodle.com/fr/\",\"http://doodle.com/fr/\")","v":"http://doodle.com/fr/"},{"$f":"HYPERLINK(\"https://www.youtube.com/watch?v=ILKsjBp6ROU\",\"https://www.youtube.com/watch?v=ILKsjBp6ROU\")","v":"https://www.youtube.com/watch?v=ILKsjBp6ROU"}]
["Présenter à l’oral des contenus (exposés, notions)","Pow toon",{"$f":"HYPERLINK(\"http://www.powtoon.com/‎\",\"www.powtoon.com/‎\")","v":"www.powtoon.com/‎"},{"$f":"HYPERLINK(\"https://www.youtube.com/watch?v=apvDAZtZezM\",\"https://www.youtube.com/watch?v=apvDAZtZezM\")","v":"https://www.youtube.com/watch?v=apvDAZtZezM"}]
["Présenter à l’oral des contenus (exposés, notions)","Prezi",{"$f":"HYPERLINK(\"https://prezi.com/\",\"https://prezi.com\n (demander version public qui est gratuite)\")","v":"https://prezi.com\n (demander version public qui est gratuite)"},{"$f":"HYPERLINK(\"https://www.youtube.com/watch?v=93PELFJ1CMw\",\"https://www.youtube.com/watch?v=93PELFJ1CMw\")","v":"https://www.youtube.com/watch?v=93PELFJ1CMw"}]
["Réaliser de la veille informationnelle (RSS)","Netvibes",{"$f":"HYPERLINK(\"http://www.netvibes.com/fr\",\"http://www.netvibes.com/fr\")","v":"http://www.netvibes.com/fr"},{"$f":"HYPERLINK(\"https://www.youtube.com/watch?v=At_JaeAu8hw\",\"https://www.youtube.com/watch?v=At_JaeAu8hw\")","v":"https://www.youtube.com/watch?v=At_JaeAu8hw"}]
["Réaliser et administrer des QCM ","Evalqcm",{"$f":"HYPERLINK(\"http://www.evalqcm.fr/\",\"http://www.evalqcm.fr\")","v":"http://www.evalqcm.fr"},{"$f":"HYPERLINK(\"https://www.youtube.com/watch?v=qbyVHt-s5H8\",\"https://www.youtube.com/watch?v=qbyVHt-s5H8\")","v":"https://www.youtube.com/watch?v=qbyVHt-s5H8"}]
["Réaliser un schéma de processus","JMOT",{"$f":"HYPERLINK(\"http://www.jfreesoft.com/JMOT/index.html\",\"www.jfreesoft.com/JMOT/index.html\")","v":"www.jfreesoft.com/JMOT/index.html"}]
["Récupérer des vidéos  ","Fluvore",{"$f":"HYPERLINK(\"http://www.fluvore.com/ (pour youtube)\",\"www.fluvore.com/ (pour youtube)\")","v":"www.fluvore.com/ (pour youtube)"}]
["Récupérer des vidéos  ","DownloadHelper (Module complémentaire de Firefox",{"$f":"HYPERLINK(\"https://addons.mozilla.org/fr/firefox/addon/video-downloadhelper/ (tout type de vidéos)\",\"https://addons.mozilla.org/fr/firefox/addon/video-downloadhelper/ \n(tout type de vidéos)\")","v":"https://addons.mozilla.org/fr/firefox/addon/video-downloadhelper/ \n(tout type de vidéos)"},{"$f":"HYPERLINK(\"https://www.youtube.com/watch?v=7YcBkT4PZbg\",\"https://www.youtube.com/watch?v=7YcBkT4PZbg\")","v":"https://www.youtube.com/watch?v=7YcBkT4PZbg"}]
["Récupérer des vidéos  ","Freemake Vidéo Downloader à télécharger)",{"$f":"HYPERLINK(\"http://freemake-video-downloader.fr.malavida.com/\",\"http://freemake-video-downloader.fr.malavida.com/\")","v":"http://freemake-video-downloader.fr.malavida.com/"}]
["gestion de projet","Trello","https://trello.com/","https://www.youtube.com/watch?v=DqmXYPNrHcw"]
["Téléchargement des vidéos","Downloader","Cet outil permet de télécharger gratuitement et facilement des vidéos à partir de Youtube via la solution Youtube Video Downloader.","Gratuit","Outil Google","https://www.commentcamarche.net/download/telecharger-34079637-downloader","https://ecogestion-legt.enseigne.ac-lyon.fr/legt/tutoriels-youtube-video-downloader/"]
["Filmer son écran et enregistrer sa voix","Screencast-o-matic","Outil de capture de ce qui déroule sur l'écran grâce à la webcam. On peut aussi ajouter du son. Le logiciel idéal pour créer ses tutoriels.","A une version payante pour plus de fonctions","Outil à télécharger sur son PC","http://screencast-o-matic.com/home","https://www.youtube.com/watch?v=caT0WExlK_w"]
["Filmer son écran et enregistrer sa voix","Camstudio","Logiciel de capture d'écran gratuit. Il permet d'enregistrer également le son de votre micro et de réaliser rapidement un tutoriel. ","Oui",null,"http://camstudio.org/","https://www.youtube.com/watch?v=563eacE09Vc"]
["Visualiser un écran","Italc","Logiciel permettant de prendre le contrôle à distance sur un PC, partager son propre écran et interagir avec les utilisateurs. ","Oui",null,"http://italc.sourceforge.net/screenshots.php","https://www.youtube.com/watch?v=fVff0ZIE4RU"]

{"sheet":"Gestion de projet","index":9,"n_rows":31,"n_cols":7,"rows_kept":31,"cut":false,"hidden":false,"merged":[[4,0,4,6]]}
[]
[]
[null,null,null,null,null,null,"Comité éditorial"]
[]
["QUELS OUTILS NUMERIQUES POUR QUELLES ACTIVITES ?"]
[]
[null,null,"GESTION DE PROJETS"]
[]
[]
["Quelles activités ?"," Quels outils ?","Présentation rapide","Gratuité proposée","Contrainte","Adresses","Modes opératoires"]
["Réaliser et administrer des QCM ","Socrative",{"$f":"HYPERLINK(\"http://www.socrative.com/\",\"http://www.socrative.com/\")","v":"http://www.socrative.com/"},{"$f":"HYPERLINK(\"https://www.youtube.com/watch?v=M6iVtc5KRaE&feature=youtu.be\",\"https://www.youtube.com/watch?v=M6iVtc5KRaE&feature=youtu.be\")","v":"https://www.youtube.com/watch?v=M6iVtc5KRaE&feature=youtu.be"}]
["Créer un mur collaboratif","Padlet",{"$f":"HYPERLINK(\"https://fr.padlet.com/\",\"https://fr.padlet.com/\")","v":"https://fr.padlet.com/"},{"$f":"HYPERLINK(\"https://www.youtube.com/watch?v=akWyL8o1qcE\",\"https://www.youtube.com/watch?v=akWyL8o1qcE\")","v":"https://www.youtube.com/watch?v=akWyL8o1qcE"}]
["Créer une carte mentale","Mindomo",{"$f":"HYPERLINK(\"https://www.mindomo.com/\",\"https://www.mindomo.com/\")","v":"https://www.mindomo.com/"},{"$f":"HYPERLINK(\"https://www.youtube.com/watch?v=9I0BEqi8RIs&feature=youtu.be\",\"https://www.youtube.com/watch?v=9I0BEqi8RIs&feature=youtu.be\")","v":"https://www.youtube.com/watch?v=9I0BEqi8RIs&feature=youtu.be"}]
["Créer une carte mentale","Freemind",{"$f":"HYPERLINK(\"http://freemind.sourceforge.net/wiki/index.php/Download\",\"http://freemind.sourceforge.net/wiki/index.php/Download\")","v":"http://freemind.sourceforge.net/wiki/index.php/Download"},{"$f":"HYPERLINK(\"https://www.youtube.com/watch?v=W1z65gNFZuk\",\"https://www.youtube.com/watch?v=W1z65gNFZuk\")","v":"https://www.youtube.com/watch?v=W1z65gNFZuk"}]
["Créer une carte mentale","Mindmeister","https://www.mindmeister.com/fr/account/login?product=1","https://www.youtube.com/watch?v=7DCcetMTtB0"]
["Filmer son écran et enregistrer sa voix","Screencast-o-matic",{"$f":"HYPERLINK(\"http://screencast-o-matic.com/home (à télécharger)\",\"http://screencast-o-matic.com/home (à télécharger)\")","v":"http://screencast-o-matic.com/home (à télécharger)"},{"$f":"HYPERLINK(\"https://www.youtube.com/watch?v=caT0WExlK_w\",\"https://www.youtube.com/watch?v=caT0WExlK_w\")","v":"https://www.youtube.com/watch?v=caT0WExlK_w"}]
["Filmer son écran et enregistrer sa voix","Camstudio",{"$f":"HYPERLINK(\"http://camstudio.org/ ( à télécharger)\",\"http://camstudio.org/ ( à télécharger)\")","v":"http://camstudio.org/ ( à télécharger)"},{"$f":"HYPERLINK(\"https://www.youtube.com/watch?v=563eacE09Vc\",\"https://www.youtube.com/watch?v=563eacE09Vc\")","v":"https://www.youtube.com/watch?v=563eacE09Vc"}]
["Organiser, partager des contenus","Pearltrees",{"$f":"HYPERLINK(\"http://www.pearltrees.com/\",\"http://www.pearltrees.com/\")","v":"http://www.pearltrees.com/"},{"$f":"HYPERLINK(\"https://www.youtube.com/watch?v=l4IFF1dAgOo\",\"https://www.youtube.com/watch?v=l4IFF1dAgOo\")","v":"https://www.youtube.com/watch?v=l4IFF1dAgOo"}]
["Partager des fichiers en collaboratif","Google drive",{"$f":"HYPERLINK(\"https://drive.google.com/\",\"Créer une adresse gamail puis\n https://drive.google.com/\")","v":"Créer une adresse gamail puis\n https://drive.google.com/"},{"$f":"HYPERLINK(\"https://www.youtube.com/watch?v=DLBUvv8hvzM\",\"https://www.youtube.com/watch?v=DLBUvv8hvzM\")","v":"https://www.youtube.com/watch?v=DLBUvv8hvzM"}]
["Partager des fichiers en collaboratif","Framapad",{"$f":"HYPERLINK(\"https://framapad.org/\",\"https://framapad.org/\")","v":"https://framapad.org/"},{"$f":"HYPERLINK(\"https://www.youtube.com/watch?v=x4TuG5yEbp0\",\"https://www.youtube.com/watch?v=x4TuG5yEbp0\")","v":"https://www.youtube.com/watch?v=x4TuG5yEbp0"}]
["Planifier un évènement","Doodle",{"$f":"HYPERLINK(\"http://doodle.com/fr/\",\"http://doodle.com/fr/\")","v":"http://doodle.com/fr/"},{"$f":"HYPERLINK(\"https://www.youtube.com/watch?v=ILKsjBp6ROU\",\"https://www.youtube.com/watch?v=ILKsjBp6ROU\")","v":"https://www.youtube.com/watch?v=ILKsjBp6ROU"}]
["Présenter à l’oral des contenus (exposés, notions)","Pow toon",{"$f":"HYPERLINK(\"http://www.powtoon.com/‎\",\"www.powtoon.com/‎\")","v":"www.powtoon.com/‎"},{"$f":"HYPERLINK(\"https://www.youtube.com/watch?v=apvDAZtZezM\",\"https://www.youtube.com/watch?v=apvDAZtZezM\")","v":"https://www.youtube.com/watch?v=apvDAZtZezM"}]
["Présenter à l’oral des contenus (exposés, notions)","Prezi",{"$f":"HYPERLINK(\"https://prezi.com/\",\"https://prezi.com\n (demander version public qui est gratuite)\")","v":"https://prezi.com\n (demander version public qui est gratuite)"},{"$f":"HYPERLINK(\"https://www.youtube.com/watch?v=93PELFJ1CMw\",\"https://www.youtube.com/watch?v=93PELFJ1CMw\")","v":"https://www.youtube.com/watch?v=93PELFJ1CMw"}]
["Réaliser de la veille informationnelle (RSS)","Netvibes",{"$f":"HYPERLINK(\"http://www.netvibes.com/fr\",\"http://www.netvibes.com/fr\")","v":"http://www.netvibes.com/fr"},{"$f":"HYPERLINK(\"https://www.youtube.com/watch?v=At_JaeAu8hw\",\"https://www.youtube.com/watch?v=At_JaeAu8hw\")","v":"https://www.youtube.com/watch?v=At_JaeAu8hw"}]
["Réaliser et administrer des QCM ","Evalqcm",{"$f":"HYPERLINK(\"http://www.evalqcm.fr/\",\"http://www.evalqcm.fr\")","v":"http://www.evalqcm.fr"},{"$f":"HYPERLINK(\"https://www.youtube.com/watch?v=qbyVHt-s5H8\",\"https://www.youtube.com/watch?v=qbyVHt-s5H8\")","v":"https://www.youtube.com/watch?v=qbyVHt-s5H8"}]
["Réaliser un schéma de processus","JMOT",{"$f":"HYPERLINK(\"http://www.jfreesoft.com/JMOT/index.html\",\"www.jfreesoft.com/JMOT/index.html\")","v":"www.jfreesoft.com/JMOT/index.html"}]
["Récupérer des vidéos  ","Fluvore",{"$f":"HYPERLINK(\"http://www.fluvore.com/ (pour youtube)\",\"www.fluvore.com/ (pour youtube)\")","v":"www.fluvore.com/ (pour youtube)"}]
["Récupérer des vidéos  ","DownloadHelper (Module complémentaire de Firefox",{"$f":"HYPERLINK(\"https://addons.mozilla.org/fr/firefox/addon/video-downloadhelper/ (tout type de vidéos)\",\"https://addons.mozilla.org/fr/firefox/addon/video-downloadhelper/ \n(tout type de vidéos)\")","v":"https://addons.mozilla.org/fr/firefox/addon/video-downloadhelper/ \n(tout type de vidéos)"},{"$f":"HYPERLINK(\"https://www.youtube.com/watch?v=7YcBkT4PZbg\",\"https://www.youtube.com/watch?v=7YcBkT4PZbg\")","v":"https://www.youtube.com/watch?v=7YcBkT4PZbg"}]
["Récupérer des vidéos  ","Freemake Vidéo Downloader à télécharger)",{"$f":"HYPERLINK(\"http://freemake-video-downloader.fr.malavida.com/\",\"http://freemake-video-downloader.fr.malavida.com/\")","v":"http://freemake-video-downloader.fr.malavida.com/"}]
["Gestion de projet","Wimi","Permet d'organiser votre travail & vos équipes, communiquer efficacement, et contrôler","14 jours d'essai gratuit",null,{"$f":"HYPERLINK(\"https://www.wimi-teamwork.com/fr/\")","v":"https://www.wimi-teamwork.com/fr/"},{"$f":"HYPERLINK(\"https://vimeo.com/album/4181241\")","v":"https://vimeo.com/album/4181241"}]
["Gestion de projet","Trello","Les tableaux, listes et cartes de Trello vous permettent d'organiser vos projets",null,"Limité à 10 tableaux",{"$f":"HYPERLINK(\"https://trello.com/\")","v":"https://trello.com/"},{"$f":"HYPERLINK(\"https://www.youtube.com/watch?v=DqmXYPNrHcw\")","v":"https://www.youtube.com/watch?v=DqmXYPNrHcw"}]

{"sheet":"Outils de communication","index":10,"n_rows":15,"n_cols":7,"rows_kept":15,"cut":false,"hidden":false,"merged":[[4,0,4,6]]}
[]
[]
[null,null,null,null,null,null,"Comité éditorial"]
[]
["QUELS OUTILS NUMERIQUES POUR QUELLES ACTIVITES ?"]
[]
[null,null,"OUTILS DE COMMUNICATION "]
[]
[]
["Quelles activités ?"," Quels outils ?","Présentation rapide","Gratuité proposée","Contrainte","Adresses","Modes opératoires"]
["Communication à distance ","Framateam","Communication collaborative.  Une alternative à SLACK","Oui","La version hébergée chez Framasoft est limitée à 145 collaborateurs","https://framateam.org/signup_user_complete/?id=o5wjhc9cojfmbm358tnyxyowic","https://darktable.fr/2018/12/nouvel-outil-pour-communiquer/"]
["Partager et communiquer","Remind","Extension de ClassRoom, permet la gestion d'une classe à distance","Oui",null,{"$f":"HYPERLINK(\"http://www.remind.com\")","v":"http://www.remind.com"},{"$f":"HYPERLINK(\"https://www.youtube.com/watch?v=UNCgE4w30qM&feature=youtu.be\")","v":"https://www.youtube.com/watch?v=UNCgE4w30qM&feature=youtu.be"}]
["Reseau social collaboratif","Edmodo","Gérer une classe, motiver ses éléves","Oui",null,{"$f":"HYPERLINK(\"https://www.edmodo.com/?simplified_landing_page=1&go2url=%2Fhome%23%2F\",\"https://www.edmodo.com/\")","v":"https://www.edmodo.com/"},{"$f":"HYPERLINK(\"https://www.youtube.com/watch?v=ayQkc-QDeRI\")","v":"https://www.youtube.com/watch?v=ayQkc-QDeRI"}]
["Emailing sur Gmail","Gmail","Webmail Gratuit, donne accès à un compte Google","Oui",null,{"$f":"HYPERLINK(\"https://www.google.com/intl/fr/gmail/about/\")","v":"https://www.google.com/intl/fr/gmail/about/"},{"$f":"HYPERLINK(\"https://www.youtube.com/watch?v=iVv8Lk8tj8o\")","v":"https://www.youtube.com/watch?v=iVv8Lk8tj8o"}]
["Communication à distance","Skype","Outils de communicationen visio et audio","Oui",null,{"$f":"HYPERLINK(\"https://www.skype.com/fr/\")","v":"https://www.skype.com/fr/"},{"$f":"HYPERLINK(\"https://www.youtube.com/watch?v=n3gqMWE7go0\")","v":"https://www.youtube.com/watch?v=n3gqMWE7go0"}]

{"sheet":"Magazine en ligne","index":11,"n_rows":29,"n_cols":9,"rows_kept":29,"cut":false,"hidden":false,"merged":[[4,0,4,6]]}
[]
[]
[null,null,null,null,null,null,"Comité éditorial"]
[]
["QUELS OUTILS NUMERIQUES POUR QUELLES ACTIVITES ?"]
[]
[null,null,"MAGAZINE EN LIGNE"]
[]
[]
["Quelles activités ?"," Quels outils ?","Présentation rapide","Gratuité proposée","Contrainte","Adresses","Modes opératoires"]
["Réaliser et administrer des QCM ","Socrative",{"$f":"HYPERLINK(\"http://www.socrative.com/\",\"http://www.socrative.com/\")","v":"http://www.socrative.com/"},{"$f":"HYPERLINK(\"https://www.youtube.com/watch?v=M6iVtc5KRaE&feature=youtu.be\",\"https://www.youtube.com/watch?v=M6iVtc5KRaE&feature=youtu.be\")","v":"https://www.youtube.com/watch?v=M6iVtc5KRaE&feature=youtu.be"}]
["Créer un mur collaboratif","Padlet",{"$f":"HYPERLINK(\"https://fr.padlet.com/\",\"https://fr.padlet.com/\")","v":"https://fr.padlet.com/"},{"$f":"HYPERLINK(\"https://www.youtube.com/watch?v=akWyL8o1qcE\",\"https://www.youtube.com/watch?v=akWyL8o1qcE\")","v":"https://www.youtube.com/watch?v=akWyL8o1qcE"}]
["Créer une carte mentale","Mindomo",{"$f":"HYPERLINK(\"https://www.mindomo.com/\",\"https://www.mindomo.com/\")","v":"https://www.mindomo.com/"},{"$f":"HYPERLINK(\"https://www.youtube.com/watch?v=9I0BEqi8RIs&feature=youtu.be\",\"https://www.youtube.com/watch?v=9I0BEqi8RIs&feature=youtu.be\")","v":"https://www.youtube.com/watch?v=9I0BEqi8RIs&feature=youtu.be"}]
["Créer une carte mentale","Freemind",{"$f":"HYPERLINK(\"http://freemind.sourceforge.net/wiki/index.php/Download\",\"http://freemind.sourceforge.net/wiki/index.php/Download\")","v":"http://freemind.sourceforge.net/wiki/index.php/Download"},{"$f":"HYPERLINK(\"https://www.youtube.com/watch?v=W1z65gNFZuk\",\"https://www.youtube.com/watch?v=W1z65gNFZuk\")","v":"https://www.youtube.com/watch?v=W1z65gNFZuk"}]
["Créer une carte mentale","Mindmeister","https://www.mindmeister.com/fr/account/login?product=1","https://www.youtube.com/watch?v=7DCcetMTtB0"]
["Filmer son écran et enregistrer sa voix","Screencast-o-matic",{"$f":"HYPERLINK(\"http://screencast-o-matic.com/home (à télécharger)\",\"http://screencast-o-matic.com/home (à télécharger)\")","v":"http://screencast-o-matic.com/home (à télécharger)"},{"$f":"HYPERLINK(\"https://www.youtube.com/watch?v=caT0WExlK_w\",\"https://www.youtube.com/watch?v=caT0WExlK_w\")","v":"https://www.youtube.com/watch?v=caT0WExlK_w"}]
["Filmer son écran et enregistrer sa voix","Camstudio",{"$f":"HYPERLINK(\"http://camstudio.org/ ( à télécharger)\",\"http://camstudio.org/ ( à télécharger)\")","v":"http://camstudio.org/ ( à télécharger)"},{"$f":"HYPERLINK(\"https://www.youtube.com/watch?v=563eacE09Vc\",\"https://www.youtube.com/watch?v=563eacE09Vc\")","v":"https://www.youtube.com/watch?v=563eacE09Vc"}]
["Planifier un évènement","Doodle",{"$f":"HYPERLINK(\"http://doodle.com/fr/\",\"http://doodle.com/fr/\")","v":"http://doodle.com/fr/"},{"$f":"HYPERLINK(\"https://www.youtube.com/watch?v=ILKsjBp6ROU\",\"https://www.youtube.com/watch?v=ILKsjBp6ROU\")","v":"https://www.youtube.com/watch?v=ILKsjBp6ROU"}]
["Présenter à l’oral des contenus (exposés, notions)","Pow toon",{"$f":"HYPERLINK(\"http://www.powtoon.com/‎\",\"www.powtoon.com/‎\")","v":"www.powtoon.com/‎"},{"$f":"HYPERLINK(\"https://www.youtube.com/watch?v=apvDAZtZezM\",\"https://www.youtube.com/watch?v=apvDAZtZezM\")","v":"https://www.youtube.com/watch?v=apvDAZtZezM"}]
["Présenter à l’oral des contenus (exposés, notions)","Prezi",{"$f":"HYPERLINK(\"https://prezi.com/\",\"https://prezi.com\n (demander version public qui est gratuite)\")","v":"https://prezi.com\n (demander version public qui est gratuite)"},{"$f":"HYPERLINK(\"https://www.youtube.com/watch?v=93PELFJ1CMw\",\"https://www.youtube.com/watch?v=93PELFJ1CMw\")","v":"https://www.youtube.com/watch?v=93PELFJ1CMw"}]
["Réaliser de la veille informationnelle (RSS)","Netvibes",{"$f":"HYPERLINK(\"http://www.netvibes.com/fr\",\"http://www.netvibes.com/fr\")","v":"http://www.netvibes.com/fr"},{"$f":"HYPERLINK(\"https://www.youtube.com/watch?v=At_JaeAu8hw\",\"https://www.youtube.com/watch?v=At_JaeAu8hw\")","v":"https://www.youtube.com/watch?v=At_JaeAu8hw"}]
["Réaliser et administrer des QCM ","Evalqcm",{"$f":"HYPERLINK(\"http://www.evalqcm.fr/\",\"http://www.evalqcm.fr\")","v":"http://www.evalqcm.fr"},{"$f":"HYPERLINK(\"https://www.youtube.com/watch?v=qbyVHt-s5H8\",\"https://www.youtube.com/watch?v=qbyVHt-s5H8\")","v":"https://www.youtube.com/watch?v=qbyVHt-s5H8"}]
["Réaliser un schéma de processus","JMOT",{"$f":"HYPERLINK(\"http://www.jfreesoft.com/JMOT/index.html\",\"www.jfreesoft.com/JMOT/index.html\")","v":"www.jfreesoft.com/JMOT/index.html"}]
["Récupérer des vidéos  ","Fluvore",{"$f":"HYPERLINK(\"http://www.fluvore.com/ (pour youtube)\",\"www.fluvore.com/ (pour youtube)\")","v":"www.fluvore.com/ (pour youtube)"}]
["Récupérer des vidéos  ","DownloadHelper (Module complémentaire de Firefox",{"$f":"HYPERLINK(\"https://addons.mozilla.org/fr/firefox/addon/video-downloadhelper/ (tout type de vidéos)\",\"https://addons.mozilla.org/fr/firefox/addon/video-downloadhelper/ \n(tout type de vidéos)\")","v":"https://addons.mozilla.org/fr/firefox/addon/video-downloadhelper/ \n(tout type de vidéos)"},{"$f":"HYPERLINK(\"https://www.youtube.com/watch?v=7YcBkT4PZbg\",\"https://www.youtube.com/watch?v=7YcBkT4PZbg\")","v":"https://www.youtube.com/watch?v=7YcBkT4PZbg"}]
["Récupérer des vidéos  ","Freemake Vidéo Downloader à télécharger)",{"$f":"HYPERLINK(\"http://freemake-video-downloader.fr.malavida.com/\",\"http://freemake-video-downloader.fr.malavida.com/\")","v":"http://freemake-video-downloader.fr.malavida.com/"}]
["gestion de projet","Trello","https://trello.com/","https://www.youtube.com/watch?v=DqmXYPNrHcw"]
["Publier un magazine en ligne","Calameo","Service en ligne permettant la conservation gratuite de document en publication numérique (brochures, livres, flyers…)\nPermet d'intégrer des éléments multimédia\nAccès public ou réservé","Oui","Gratuit jusqu'à 15 Go de stockage \nLes publications sont lmitées à 500 Mo","https://fr.calameo.com/",{"$f":"HYPERLINK(\"https://www.youtube.com/watch?v=jMqgi3mu9tI\")","v":"https://www.youtube.com/watch?v=jMqgi3mu9tI"}]
["Créer et publie un magazone en ligne","Madmagz","Service en ligne permettant la création, la publication numériques gratuites de magazines",{"$f":"D28","v":"Oui"},null,"https://madmagz.com/fr","https://www.youtube.com/watch?v=LKI6SNxw2n8",null,"Oui"]

{"sheet":"Partage de contenus","index":12,"n_rows":16,"n_cols":7,"rows_kept":16,"cut":false,"hidden":false,"merged":[[4,0,4,6]]}
[]
[]
[null,null,null,null,null,null,"Comité éditorial"]
[]
["QUELS OUTILS NUMERIQUES POUR QUELLES ACTIVITES ?"]
[]
[null,null,"PARTAGE DE CONTENUS et DE FICHIERS"]
[]
[]
["Quelles activités ?"," Quels outils ?","Présentation rapide","Gratuité proposée","Contrainte","Adresses","Modes opératoires"]
["Organiser, partager des contenus (outil de veille)","Feedly","Agrégateur de flux RSS, il permet aux utilisateurs d'organiser, d'exploiter et de partager des pages\nC'est aussi un outil de veille","Oui mais il existe des formats plus performants en premium ",null,"https://feedly.com/i/welcome","https://www.youtube.com/watch?v=9RRcnw2flL8"]
["Partager de contenus (outil de veille et de communication digitale)","Twitter","Permet de diffuser et de partager les contenus créés ou reçus sur son fil d'actualité","Oui",null,"https://twitter.com/","https://www.youtube.com/watch?v=Z8220QxGjv0"]
["Organiser, partager des contenus (outil de veille)","Pearltrees","Permet aux utilisateurs d'organiser, d'exploiter et de partager des pages\nC'est aussi un outil de veille","Oui mais il existe un format plus performant en premium et education en formule payante",null,"http://www.pearltrees.com/","https://www.youtube.com/watch?v=l4IFF1dAgOo"]
["Partager des fichiers en collaboratif","Dropbox","Service de stockage et partage de fichiers","Gratuit jusqu'à 2 Go","Gratuit et extensible jusqu'à 8 Go par parrainage\nLe travail à plusieurs sur le même document fonctionne mal","https://www.dropbox.com/","http://outils-reseaux.org/DropboX"]
["Partager des fichiers en collaboratif","Framapad","Editeur de textes collaboratifs en ligne. Permet la production à plusieurs","Oui","Nécessite l'installation d'un logiciel Etherpad (licence libre)","https://framapad.org/","https://www.youtube.com/watch?v=x4TuG5yEbp0"]
["Partage de fichiers volumineux","Wetransfer","Permet le transfert de fichiers inférieurs ou égal à 2Go.\nOn peut désigner jusqu'à 3 destinataires. Au-delà création d'un lien de téléchargement.",{"$f":"D15","v":"Oui"},null,"https://wetransfer.com/","https://ecogestion-legt.enseigne.ac-lyon.fr/legt/tutoriels-we-transfer/"]

{"sheet":"Outils de planification","index":13,"n_rows":32,"n_cols":7,"rows_kept":32,"cut":false,"hidden":false,"merged":[[4,0,4,6]]}
[]
[]
[null,null,null,null,null,null,"Comité éditorial"]
[]
["QUELS OUTILS NUMERIQUES POUR QUELLES ACTIVITES ?"]
[]
[null,null,"PLANIFICATION D'EVENEMENTS"]
[]
[]
["Quelles activités ?"," Quels outils ?","Présentation rapide","Gratuité proposée","Contrainte"," Quelles adresses ?","Quels modes opératoires ?"]
["Réaliser et administrer des QCM ","Socrative",{"$f":"HYPERLINK(\"http://www.socrative.com/\",\"http://www.socrative.com/\")","v":"http://www.socrative.com/"},{"$f":"HYPERLINK(\"https://www.youtube.com/watch?v=M6iVtc5KRaE&feature=youtu.be\",\"https://www.youtube.com/watch?v=M6iVtc5KRaE&feature=youtu.be\")","v":"https://www.youtube.com/watch?v=M6iVtc5KRaE&feature=youtu.be"}]
["Créer un mur collaboratif","Padlet",{"$f":"HYPERLINK(\"https://fr.padlet.com/\",\"https://fr.padlet.com/\")","v":"https://fr.padlet.com/"},{"$f":"HYPERLINK(\"https://www.youtube.com/watch?v=akWyL8o1qcE\",\"https://www.youtube.com/watch?v=akWyL8o1qcE\")","v":"https://www.youtube.com/watch?v=akWyL8o1qcE"}]
["Créer une carte mentale","Mindomo",{"$f":"HYPERLINK(\"https://www.mindomo.com/\",\"https://www.mindomo.com/\")","v":"https://www.mindomo.com/"},{"$f":"HYPERLINK(\"https://www.youtube.com/watch?v=9I0BEqi8RIs&feature=youtu.be\",\"https://www.youtube.com/watch?v=9I0BEqi8RIs&feature=youtu.be\")","v":"https://www.youtube.com/watch?v=9I0BEqi8RIs&feature=youtu.be"}]
["Créer une carte mentale","Freemind",{"$f":"HYPERLINK(\"http://freemind.sourceforge.net/wiki/index.php/Download\",\"http://freemind.sourceforge.net/wiki/index.php/Download\")","v":"http://freemind.sourceforge.net/wiki/index.php/Download"},{"$f":"HYPERLINK(\"https://www.youtube.com/watch?v=W1z65gNFZuk\",\"https://www.youtube.com/watch?v=W1z65gNFZuk\")","v":"https://www.youtube.com/watch?v=W1z65gNFZuk"}]
["Créer une carte mentale","Mindmeister","https://www.mindmeister.com/fr/account/login?product=1","https://www.youtube.com/watch?v=7DCcetMTtB0"]
["Filmer son écran et enregistrer sa voix","Screencast-o-matic",{"$f":"HYPERLINK(\"http://screencast-o-matic.com/home (à télécharger)\",\"http://screencast-o-matic.com/home (à télécharger)\")","v":"http://screencast-o-matic.com/home (à télécharger)"},{"$f":"HYPERLINK(\"https://www.youtube.com/watch?v=caT0WExlK_w\",\"https://www.youtube.com/watch?v=caT0WExlK_w\")","v":"https://www.youtube.com/watch?v=caT0WExlK_w"}]
["Filmer son écran et enregistrer sa voix","Camstudio",{"$f":"HYPERLINK(\"http://camstudio.org/ ( à télécharger)\",\"http://camstudio.org/ ( à télécharger)\")","v":"http://camstudio.org/ ( à télécharger)"},{"$f":"HYPERLINK(\"https://www.youtube.com/watch?v=563eacE09Vc\",\"https://www.youtube.com/watch?v=563eacE09Vc\")","v":"https://www.youtube.com/watch?v=563eacE09Vc"}]
["Organiser, partager des contenus","Pearltrees",{"$f":"HYPERLINK(\"http://www.pearltrees.com/\",\"http://www.pearltrees.com/\")","v":"http://www.pearltrees.com/"},{"$f":"HYPERLINK(\"https://www.youtube.com/watch?v=l4IFF1dAgOo\",\"https://www.youtube.com/watch?v=l4IFF1dAgOo\")","v":"https://www.youtube.com/watch?v=l4IFF1dAgOo"}]
["Partager des fichiers en collaboratif","Google drive",{"$f":"HYPERLINK(\"https://drive.google.com/\",\"Créer une adresse gamail puis\n https://drive.google.com/\")","v":"Créer une adresse gamail puis\n https://drive.google.com/"},{"$f":"HYPERLINK(\"https://www.youtube.com/watch?v=DLBUvv8hvzM\",\"https://www.youtube.com/watch?v=DLBUvv8hvzM\")","v":"https://www.youtube.com/watch?v=DLBUvv8hvzM"}]
["Partager des fichiers en collaboratif","Framapad",{"$f":"HYPERLINK(\"https://framapad.org/\",\"https://framapad.org/\")","v":"https://framapad.org/"},{"$f":"HYPERLINK(\"https://www.youtube.com/watch?v=x4TuG5yEbp0\",\"https://www.youtube.com/watch?v=x4TuG5yEbp0\")","v":"https://www.youtube.com/watch?v=x4TuG5yEbp0"}]
["Planifier un évènement","Doodle","Permet la planification d'évènements,RDV, réunions, projets...\nCréation de sondage en ligne","Oui",null,{"$f":"HYPERLINK(\"http://doodle.com/fr/\",\"http://doodle.com/fr/\")","v":"http://doodle.com/fr/"},{"$f":"HYPERLINK(\"https://www.youtube.com/watch?v=ILKsjBp6ROU\",\"https://www.youtube.com/watch?v=ILKsjBp6ROU\")","v":"https://www.youtube.com/watch?v=ILKsjBp6ROU"}]
["Présenter à l’oral des contenus (exposés, notions)","Pow toon","Planification d'évènement…\nFramasoft",null,null,{"$f":"HYPERLINK(\"http://www.powtoon.com/‎\",\"www.powtoon.com/‎\")","v":"www.powtoon.com/‎"},{"$f":"HYPERLINK(\"https://www.youtube.com/watch?v=apvDAZtZezM\",\"https://www.youtube.com/watch?v=apvDAZtZezM\")","v":"https://www.youtube.com/watch?v=apvDAZtZezM"}]
["Présenter à l’oral des contenus (exposés, notions)","Prezi","Application permettant un visuel de son agenda grâce à des images et des cartes ",null,"Univers google",{"$f":"HYPERLINK(\"https://prezi.com/\",\"https://prezi.com\n (demander version public qui est gratuite)\")","v":"https://prezi.com\n (demander version public qui est gratuite)"},{"$f":"HYPERLINK(\"https://www.youtube.com/watch?v=93PELFJ1CMw\",\"https://www.youtube.com/watch?v=93PELFJ1CMw\")","v":"https://www.youtube.com/watch?v=93PELFJ1CMw"}]
["Réaliser de la veille informationnelle (RSS)","Netvibes",null,null,null,{"$f":"HYPERLINK(\"http://www.netvibes.com/fr\",\"http://www.netvibes.com/fr\")","v":"http://www.netvibes.com/fr"},{"$f":"HYPERLINK(\"https://www.youtube.com/watch?v=At_JaeAu8hw\",\"https://www.youtube.com/watch?v=At_JaeAu8hw\")","v":"https://www.youtube.com/watch?v=At_JaeAu8hw"}]
["Réaliser et administrer des QCM ","Evalqcm",null,null,null,{"$f":"HYPERLINK(\"http://www.evalqcm.fr/\",\"http://www.evalqcm.fr\")","v":"http://www.evalqcm.fr"},{"$f":"HYPERLINK(\"https://www.youtube.com/watch?v=qbyVHt-s5H8\",\"https://www.youtube.com/watch?v=qbyVHt-s5H8\")","v":"https://www.youtube.com/watch?v=qbyVHt-s5H8"}]
["Réaliser un schéma de processus","JMOT",null,null,null,{"$f":"HYPERLINK(\"http://www.jfreesoft.com/JMOT/index.html\",\"www.jfreesoft.com/JMOT/index.html\")","v":"www.jfreesoft.com/JMOT/index.html"}]
["Récupérer des vidéos  ","Fluvore",null,null,null,{"$f":"HYPERLINK(\"http://www.fluvore.com/ (pour youtube)\",\"www.fluvore.com/ (pour youtube)\")","v":"www.fluvore.com/ (pour youtube)"}]
["Récupérer des vidéos  ","DownloadHelper (Module complémentaire de Firefox",null,null,null,{"$f":"HYPERLINK(\"https://addons.mozilla.org/fr/firefox/addon/video-downloadhelper/ (tout type de vidéos)\",\"https://addons.mozilla.org/fr/firefox/addon/video-downloadhelper/ \n(tout type de vidéos)\")","v":"https://addons.mozilla.org/fr/firefox/addon/video-downloadhelper/ \n(tout type de vidéos)"},{"$f":"HYPERLINK(\"https://www.youtube.com/watch?v=7YcBkT4PZbg\",\"https://www.youtube.com/watch?v=7YcBkT4PZbg\")","v":"https://www.youtube.com/watch?v=7YcBkT4PZbg"}]
["Récupérer des vidéos  ","Freemake Vidéo Downloader à télécharger)",null,null,null,{"$f":"HYPERLINK(\"http://freemake-video-downloader.fr.malavida.com/\",\"http://freemake-video-downloader.fr.malavida.com/\")","v":"http://freemake-video-downloader.fr.malavida.com/"}]
["gestion de projet","Trello",null,null,null,"https://trello.com/","https://www.youtube.com/watch?v=DqmXYPNrHcw"]
["Planifier un évènement","Framadate","Planification d'évènement…\nFramasoft","Oui",null,{"$f":"HYPERLINK(\"https://framadate.org/\")","v":"https://framadate.org/"},{"$f":"HYPERLINK(\"https://www.youtube.com/watch?v=OEt4WDsQODI\")","v":"https://www.youtube.com/watch?v=OEt4WDsQODI"}]
["Agenda partagé","Google Agenda","Application permettant un visuel de son agenda grâce à des images et des cartes ","Oui","Univers Google",{"$f":"HYPERLINK(\"https://www.google.com/intl/fr/calendar/about/\")","v":"https://www.google.com/intl/fr/calendar/about/"},{"$f":"HYPERLINK(\"https://www.youtube.com/watch?v=7e75GMOsAzY\")","v":"https://www.youtube.com/watch?v=7e75GMOsAzY"}]

{"sheet":"Schéma de processus","index":14,"n_rows":12,"n_cols":7,"rows_kept":12,"cut":false,"hidden":false,"merged":[[4,0,4,6]]}
[]
[]
[null,null,null,null,null,null,"Comité éditorial"]
[]
["QUELS OUTILS NUMERIQUES POUR QUELLES ACTIVITES ?"]
[]
[null,null,null,"SCHEMA DE PROCESSUS"]
[]
[]
["Quelles activités ?"," Quels outils ?","Présentation rapide","Gratuité proposée","Contrainte","Adresses","Modes opératoires"]
["Réaliser un schéma de processus","JMOT","JMOT est un logiciel de modélisation des diagrammes organisationnels de traitements (MOT). Il permet la conception, la sauvegarde et l'exportation des diagrammes sous forme d'image.","Oui","A télécharger et à installer en local sur chaque ordinateur","http://www.jfreesoft.com/JMOT/index.html","https://www.youtube.com/watch?v=OJm1X4EgX4g"]
["Réaliser un schéma de processus / un diagramme de flux","Canva","Permet de réaliser un diagramme de flux","Oui","Créer un compte","https://www.canva.com/fr_fr/graphiques/diagramme-flux/","https://www.youtube.com/watch?v=7JzYqnvoeQ4"]

{"sheet":"Compression et convertisseur","index":15,"n_rows":30,"n_cols":7,"rows_kept":30,"cut":false,"hidden":false,"merged":[[4,0,4,6]]}
[]
[]
[null,null,null,null,null,null,"Comité éditorial"]
[]
["QUELS OUTILS NUMERIQUES POUR QUELLES ACTIVITES ?"]
[]
[null,null,"COMPRESSION ET CONVERTISSEUR DE FICHIERS"]
[]
[]
["Quelles activités ?"," Quels outils ?","Présentation rapide","Gratuité proposée","Contrainte","Adresses","Modes opératoires"]
["Réaliser et administrer des QCM ","Socrative",{"$f":"HYPERLINK(\"http://www.socrative.com/\",\"http://www.socrative.com/\")","v":"http://www.socrative.com/"},{"$f":"HYPERLINK(\"https://www.youtube.com/watch?v=M6iVtc5KRaE&feature=youtu.be\",\"https://www.youtube.com/watch?v=M6iVtc5KRaE&feature=youtu.be\")","v":"https://www.youtube.com/watch?v=M6iVtc5KRaE&feature=youtu.be"}]
["Créer un mur collaboratif","Padlet",{"$f":"HYPERLINK(\"https://fr.padlet.com/\",\"https://fr.padlet.com/\")","v":"https://fr.padlet.com/"},{"$f":"HYPERLINK(\"https://www.youtube.com/watch?v=akWyL8o1qcE\",\"https://www.youtube.com/watch?v=akWyL8o1qcE\")","v":"https://www.youtube.com/watch?v=akWyL8o1qcE"}]
["Créer une carte mentale","Mindomo",{"$f":"HYPERLINK(\"https://www.mindomo.com/\",\"https://www.mindomo.com/\")","v":"https://www.mindomo.com/"},{"$f":"HYPERLINK(\"https://www.youtube.com/watch?v=9I0BEqi8RIs&feature=youtu.be\",\"https://www.youtube.com/watch?v=9I0BEqi8RIs&feature=youtu.be\")","v":"https://www.youtube.com/watch?v=9I0BEqi8RIs&feature=youtu.be"}]
["Créer une carte mentale","Freemind",{"$f":"HYPERLINK(\"http://freemind.sourceforge.net/wiki/index.php/Download\",\"http://freemind.sourceforge.net/wiki/index.php/Download\")","v":"http://freemind.sourceforge.net/wiki/index.php/Download"},{"$f":"HYPERLINK(\"https://www.youtube.com/watch?v=W1z65gNFZuk\",\"https://www.youtube.com/watch?v=W1z65gNFZuk\")","v":"https://www.youtube.com/watch?v=W1z65gNFZuk"}]
["Créer une carte mentale","Mindmeister","https://www.mindmeister.com/fr/account/login?product=1","https://www.youtube.com/watch?v=7DCcetMTtB0"]
["Filmer son écran et enregistrer sa voix","Screencast-o-matic",{"$f":"HYPERLINK(\"http://screencast-o-matic.com/home (à télécharger)\",\"http://screencast-o-matic.com/home (à télécharger)\")","v":"http://screencast-o-matic.com/home (à télécharger)"},{"$f":"HYPERLINK(\"https://www.youtube.com/watch?v=caT0WExlK_w\",\"https://www.youtube.com/watch?v=caT0WExlK_w\")","v":"https://www.youtube.com/watch?v=caT0WExlK_w"}]
["Filmer son écran et enregistrer sa voix","Camstudio",{"$f":"HYPERLINK(\"http://camstudio.org/ ( à télécharger)\",\"http://camstudio.org/ ( à télécharger)\")","v":"http://camstudio.org/ ( à télécharger)"},{"$f":"HYPERLINK(\"https://www.youtube.com/watch?v=563eacE09Vc\",\"https://www.youtube.com/watch?v=563eacE09Vc\")","v":"https://www.youtube.com/watch?v=563eacE09Vc"}]
["Organiser, partager des contenus","Pearltrees",{"$f":"HYPERLINK(\"http://www.pearltrees.com/\",\"http://www.pearltrees.com/\")","v":"http://www.pearltrees.com/"},{"$f":"HYPERLINK(\"https://www.youtube.com/watch?v=l4IFF1dAgOo\",\"https://www.youtube.com/watch?v=l4IFF1dAgOo\")","v":"https://www.youtube.com/watch?v=l4IFF1dAgOo"}]
["Partager des fichiers en collaboratif","Google drive",{"$f":"HYPERLINK(\"https://drive.google.com/\",\"Créer une adresse gamail puis\n https://drive.google.com/\")","v":"Créer une adresse gamail puis\n https://drive.google.com/"},{"$f":"HYPERLINK(\"https://www.youtube.com/watch?v=DLBUvv8hvzM\",\"https://www.youtube.com/watch?v=DLBUvv8hvzM\")","v":"https://www.youtube.com/watch?v=DLBUvv8hvzM"}]
["Partager des fichiers en collaboratif","Framapad",{"$f":"HYPERLINK(\"https://framapad.org/\",\"https://framapad.org/\")","v":"https://framapad.org/"},{"$f":"HYPERLINK(\"https://www.youtube.com/watch?v=x4TuG5yEbp0\",\"https://www.youtube.com/watch?v=x4TuG5yEbp0\")","v":"https://www.youtube.com/watch?v=x4TuG5yEbp0"}]
["Planifier un évènement","Doodle",{"$f":"HYPERLINK(\"http://doodle.com/fr/\",\"http://doodle.com/fr/\")","v":"http://doodle.com/fr/"},{"$f":"HYPERLINK(\"https://www.youtube.com/watch?v=ILKsjBp6ROU\",\"https://www.youtube.com/watch?v=ILKsjBp6ROU\")","v":"https://www.youtube.com/watch?v=ILKsjBp6ROU"}]
["Présenter à l’oral des contenus (exposés, notions)","Pow toon",{"$f":"HYPERLINK(\"http://www.powtoon.com/‎\",\"www.powtoon.com/‎\")","v":"www.powtoon.com/‎"},{"$f":"HYPERLINK(\"https://www.youtube.com/watch?v=apvDAZtZezM\",\"https://www.youtube.com/watch?v=apvDAZtZezM\")","v":"https://www.youtube.com/watch?v=apvDAZtZezM"}]
["Présenter à l’oral des contenus (exposés, notions)","Prezi",{"$f":"HYPERLINK(\"https://prezi.com/\",\"https://prezi.com\n (demander version public qui est gratuite)\")","v":"https://prezi.com\n (demander version public qui est gratuite)"},{"$f":"HYPERLINK(\"https://www.youtube.com/watch?v=93PELFJ1CMw\",\"https://www.youtube.com/watch?v=93PELFJ1CMw\")","v":"https://www.youtube.com/watch?v=93PELFJ1CMw"}]
["Réaliser de la veille informationnelle (RSS)","Netvibes",{"$f":"HYPERLINK(\"http://www.netvibes.com/fr\",\"http://www.netvibes.com/fr\")","v":"http://www.netvibes.com/fr"},{"$f":"HYPERLINK(\"https://www.youtube.com/watch?v=At_JaeAu8hw\",\"https://www.youtube.com/watch?v=At_JaeAu8hw\")","v":"https://www.youtube.com/watch?v=At_JaeAu8hw"}]
["Réaliser et administrer des QCM ","Evalqcm",{"$f":"HYPERLINK(\"http://www.evalqcm.fr/\",\"http://www.evalqcm.fr\")","v":"http://www.evalqcm.fr"},{"$f":"HYPERLINK(\"https://www.youtube.com/watch?v=qbyVHt-s5H8\",\"https://www.youtube.com/watch?v=qbyVHt-s5H8\")","v":"https://www.youtube.com/watch?v=qbyVHt-s5H8"}]
["Réaliser un schéma de processus","JMOT",{"$f":"HYPERLINK(\"http://www.jfreesoft.com/JMOT/index.html\",\"www.jfreesoft.com/JMOT/index.html\")","v":"www.jfreesoft.com/JMOT/index.html"}]
["gestion de projet","Trello","https://trello.com/","https://www.youtube.com/watch?v=DqmXYPNrHcw"]
["Convertisseur de fichiers","123apps","Couteau suisse 123 apps proposoe plusieurs convertisseurs pour les fichiers audio, vidéo, textes.","Oui",null,"https://123apps.com/fr/","https://vimeo.com/293539675"]
["Compresser des images","Compressnow","Cet outil aide à réduire le poids d'une photo. Utile pour un envoi par mail ou pour un téléchargement plus facile sur un site.","Oui","Déblocage de Ad block exigé pour fonctionner",{"$f":"HYPERLINK(\"https://compressnow.com/fr/\")","v":"https://compressnow.com/fr/"},{"$f":"HYPERLINK(\"https://www.youtube.com/watch?v=RBi3e86fb2Q\")","v":"https://www.youtube.com/watch?v=RBi3e86fb2Q"}]
["Convertisseur de fichiers","Zamzar","Un outil facile et rapide pour convertir une vidéo dans un autre format. Mais aussi des documents, des photos, des plans, des fichiers audios,...","Oui",null,{"$f":"HYPERLINK(\"https://www.zamzar.com/\")","v":"https://www.zamzar.com/"},{"$f":"HYPERLINK(\"https://www.youtube.com/watch?v=__fvyEKfZ4o\")","v":"https://www.youtube.com/watch?v=__fvyEKfZ4o"}]

{"sheet":"Hebergement_video","index":16,"n_rows":30,"n_cols":7,"rows_kept":30,"cut":false,"hidden":false,"merged":[[4,0,4,6]]}
[]
[]
[null,null,null,null,null,null,"Comité éditorial"]
[]
["QUELS OUTILS NUMERIQUES POUR QUELLES ACTIVITES ?"]
[]
[null,null,null,"HEBERGER DES FICHIERS AUDIO ET VIDEO"]
[]
[]
["Quelles activités ?"," Quels outils ?","Présentation rapide","Gratuité proposée","Contrainte","Adresses","Modes opératoires "]
["Réaliser et administrer des QCM ","Socrative",null,{"$f":"HYPERLINK(\"http://www.socrative.com/\",\"http://www.socrative.com/\")","v":"http://www.socrative.com/"},{"$f":"HYPERLINK(\"https://www.youtube.com/watch?v=M6iVtc5KRaE&feature=youtu.be\",\"https://www.youtube.com/watch?v=M6iVtc5KRaE&feature=youtu.be\")","v":"https://www.youtube.com/watch?v=M6iVtc5KRaE&feature=youtu.be"}]
["Créer un mur collaboratif","Padlet",null,{"$f":"HYPERLINK(\"https://fr.padlet.com/\",\"https://fr.padlet.com/\")","v":"https://fr.padlet.com/"},{"$f":"HYPERLINK(\"https://www.youtube.com/watch?v=akWyL8o1qcE\",\"https://www.youtube.com/watch?v=akWyL8o1qcE\")","v":"https://www.youtube.com/watch?v=akWyL8o1qcE"}]
["Créer une carte mentale","Mindomo",null,{"$f":"HYPERLINK(\"https://www.mindomo.com/\",\"https://www.mindomo.com/\")","v":"https://www.mindomo.com/"},{"$f":"HYPERLINK(\"https://www.youtube.com/watch?v=9I0BEqi8RIs&feature=youtu.be\",\"https://www.youtube.com/watch?v=9I0BEqi8RIs&feature=youtu.be\")","v":"https://www.youtube.com/watch?v=9I0BEqi8RIs&feature=youtu.be"}]
["Créer une carte mentale","Freemind",null,{"$f":"HYPERLINK(\"http://freemind.sourceforge.net/wiki/index.php/Download\",\"http://freemind.sourceforge.net/wiki/index.php/Download\")","v":"http://freemind.sourceforge.net/wiki/index.php/Download"},{"$f":"HYPERLINK(\"https://www.youtube.com/watch?v=W1z65gNFZuk\",\"https://www.youtube.com/watch?v=W1z65gNFZuk\")","v":"https://www.youtube.com/watch?v=W1z65gNFZuk"}]
["Créer une carte mentale","Mindmeister",null,"https://www.mindmeister.com/fr/account/login?product=1","https://www.youtube.com/watch?v=7DCcetMTtB0"]
["Filmer son écran et enregistrer sa voix","Screencast-o-matic",null,{"$f":"HYPERLINK(\"http://screencast-o-matic.com/home (à télécharger)\",\"http://screencast-o-matic.com/home (à télécharger)\")","v":"http://screencast-o-matic.com/home (à télécharger)"},{"$f":"HYPERLINK(\"https://www.youtube.com/watch?v=caT0WExlK_w\",\"https://www.youtube.com/watch?v=caT0WExlK_w\")","v":"https://www.youtube.com/watch?v=caT0WExlK_w"}]
["Filmer son écran et enregistrer sa voix","Camstudio",null,{"$f":"HYPERLINK(\"http://camstudio.org/ ( à télécharger)\",\"http://camstudio.org/ ( à télécharger)\")","v":"http://camstudio.org/ ( à télécharger)"},{"$f":"HYPERLINK(\"https://www.youtube.com/watch?v=563eacE09Vc\",\"https://www.youtube.com/watch?v=563eacE09Vc\")","v":"https://www.youtube.com/watch?v=563eacE09Vc"}]
["Organiser, partager des contenus","Pearltrees",null,{"$f":"HYPERLINK(\"http://www.pearltrees.com/\",\"http://www.pearltrees.com/\")","v":"http://www.pearltrees.com/"},{"$f":"HYPERLINK(\"https://www.youtube.com/watch?v=l4IFF1dAgOo\",\"https://www.youtube.com/watch?v=l4IFF1dAgOo\")","v":"https://www.youtube.com/watch?v=l4IFF1dAgOo"}]
["Partager des fichiers en collaboratif","Google drive",null,{"$f":"HYPERLINK(\"https://drive.google.com/\",\"Créer une adresse gamail puis\n https://drive.google.com/\")","v":"Créer une adresse gamail puis\n https://drive.google.com/"},{"$f":"HYPERLINK(\"https://www.youtube.com/watch?v=DLBUvv8hvzM\",\"https://www.youtube.com/watch?v=DLBUvv8hvzM\")","v":"https://www.youtube.com/watch?v=DLBUvv8hvzM"}]
["Partager des fichiers en collaboratif","Framapad",null,{"$f":"HYPERLINK(\"https://framapad.org/\",\"https://framapad.org/\")","v":"https://framapad.org/"},{"$f":"HYPERLINK(\"https://www.youtube.com/watch?v=x4TuG5yEbp0\",\"https://www.youtube.com/watch?v=x4TuG5yEbp0\")","v":"https://www.youtube.com/watch?v=x4TuG5yEbp0"}]
["Planifier un évènement","Doodle",null,{"$f":"HYPERLINK(\"http://doodle.com/fr/\",\"http://doodle.com/fr/\")","v":"http://doodle.com/fr/"},{"$f":"HYPERLINK(\"https://www.youtube.com/watch?v=ILKsjBp6ROU\",\"https://www.youtube.com/watch?v=ILKsjBp6ROU\")","v":"https://www.youtube.com/watch?v=ILKsjBp6ROU"}]
["Présenter à l’oral des contenus (exposés, notions)","Pow toon",null,{"$f":"HYPERLINK(\"http://www.powtoon.com/‎\",\"www.powtoon.com/‎\")","v":"www.powtoon.com/‎"},{"$f":"HYPERLINK(\"https://www.youtube.com/watch?v=apvDAZtZezM\",\"https://www.youtube.com/watch?v=apvDAZtZezM\")","v":"https://www.youtube.com/watch?v=apvDAZtZezM"}]
["Présenter à l’oral des contenus (exposés, notions)","Prezi",null,{"$f":"HYPERLINK(\"https://prezi.com/\",\"https://prezi.com\n (demander version public qui est gratuite)\")","v":"https://prezi.com\n (demander version public qui est gratuite)"},{"$f":"HYPERLINK(\"https://www.youtube.com/watch?v=93PELFJ1CMw\",\"https://www.youtube.com/watch?v=93PELFJ1CMw\")","v":"https://www.youtube.com/watch?v=93PELFJ1CMw"}]
["Réaliser de la veille informationnelle (RSS)","Netvibes",null,{"$f":"HYPERLINK(\"http://www.netvibes.com/fr\",\"http://www.netvibes.com/fr\")","v":"http://www.netvibes.com/fr"},{"$f":"HYPERLINK(\"https://www.youtube.com/watch?v=At_JaeAu8hw\",\"https://www.youtube.com/watch?v=At_JaeAu8hw\")","v":"https://www.youtube.com/watch?v=At_JaeAu8hw"}]
["Réaliser et administrer des QCM ","Evalqcm",null,{"$f":"HYPERLINK(\"http://www.evalqcm.fr/\",\"http://www.evalqcm.fr\")","v":"http://www.evalqcm.fr"},{"$f":"HYPERLINK(\"https://www.youtube.com/watch?v=qbyVHt-s5H8\",\"https://www.youtube.com/watch?v=qbyVHt-s5H8\")","v":"https://www.youtube.com/watch?v=qbyVHt-s5H8"}]
["Réaliser un schéma de processus","JMOT",null,{"$f":"HYPERLINK(\"http://www.jfreesoft.com/JMOT/index.html\",\"www.jfreesoft.com/JMOT/index.html\")","v":"www.jfreesoft.com/JMOT/index.html"}]
["gestion de projet","Trello",null,"https://trello.com/","https://www.youtube.com/watch?v=DqmXYPNrHcw"]
["Hébergement audio","Soundcloud","Hébergement audio, permet le partage","Oui",null,{"$f":"HYPERLINK(\"https://soundcloud.com/#\")","v":"https://soundcloud.com/#"},{"$f":"HYPERLINK(\"https://www.youtube.com/watch?v=pZS1K2k8cLs\")","v":"https://www.youtube.com/watch?v=pZS1K2k8cLs"}]
["Hébergement video","Youtube","Hébergement audio et vidéo, permet le partage",{"$f":"D28","v":"Oui"},null,{"$f":"HYPERLINK(\"https://www.youtube.com/\")","v":"https://www.youtube.com/"},{"$f":"HYPERLINK(\"https://www.youtube.com/watch?v=46lag1_JpZ4\")","v":"https://www.youtube.com/watch?v=46lag1_JpZ4"}]
["Hébergement video","Vimeo","Hébergement audio et vidéo, permet le partage",{"$f":"D29","v":"Oui"},null,{"$f":"HYPERLINK(\"https://vimeo.com/fr/\")","v":"https://vimeo.com/fr/"},{"$f":"HYPERLINK(\"https://vimeo.com/59856566\")","v":"https://vimeo.com/59856566"}]

{"sheet":"VIDEOS","index":17,"n_rows":30,"n_cols":7,"rows_kept":30,"cut":false,"hidden":false,"merged":[[4,0,4,6]]}
[]
[]
[null,null,null,null,null,null,"Comité éditorial"]
[]
["QUELS OUTILS NUMERIQUES POUR QUELLES ACTIVITES ?"]
[]
[null,null,null,"TELECHARGEMENT ET MONTAGE DE FICHIERS AUDIO ET VIDEO"]
[]
[]
["Quelles activités ?"," Quels outils ?","Présentation rapide","Gratuité proposée","Contrainte","Adresses","Modes opératoires"]
["Réaliser et administrer des QCM ","Socrative",null,null,null,{"$f":"HYPERLINK(\"http://www.socrative.com/\",\"http://www.socrative.com/\")","v":"http://www.socrative.com/"},{"$f":"HYPERLINK(\"https://www.youtube.com/watch?v=M6iVtc5KRaE&feature=youtu.be\",\"https://www.youtube.com/watch?v=M6iVtc5KRaE&feature=youtu.be\")","v":"https://www.youtube.com/watch?v=M6iVtc5KRaE&feature=youtu.be"}]
["Créer un mur collaboratif","Padlet",null,null,null,{"$f":"HYPERLINK(\"https://fr.padlet.com/\",\"https://fr.padlet.com/\")","v":"https://fr.padlet.com/"},{"$f":"HYPERLINK(\"https://www.youtube.com/watch?v=akWyL8o1qcE\",\"https://www.youtube.com/watch?v=akWyL8o1qcE\")","v":"https://www.youtube.com/watch?v=akWyL8o1qcE"}]
["Créer une carte mentale","Mindomo",null,null,null,{"$f":"HYPERLINK(\"https://www.mindomo.com/\",\"https://www.mindomo.com/\")","v":"https://www.mindomo.com/"},{"$f":"HYPERLINK(\"https://www.youtube.com/watch?v=9I0BEqi8RIs&feature=youtu.be\",\"https://www.youtube.com/watch?v=9I0BEqi8RIs&feature=youtu.be\")","v":"https://www.youtube.com/watch?v=9I0BEqi8RIs&feature=youtu.be"}]
["Créer une carte mentale","Freemind",null,null,null,{"$f":"HYPERLINK(\"http://freemind.sourceforge.net/wiki/index.php/Download\",\"http://freemind.sourceforge.net/wiki/index.php/Download\")","v":"http://freemind.sourceforge.net/wiki/index.php/Download"},{"$f":"HYPERLINK(\"https://www.youtube.com/watch?v=W1z65gNFZuk\",\"https://www.youtube.com/watch?v=W1z65gNFZuk\")","v":"https://www.youtube.com/watch?v=W1z65gNFZuk"}]
["Créer une carte mentale","Mindmeister",null,null,null,"https://www.mindmeister.com/fr/account/login?product=1","https://www.youtube.com/watch?v=7DCcetMTtB0"]
["Filmer son écran et enregistrer sa voix","Screencast-o-matic",null,null,null,{"$f":"HYPERLINK(\"http://screencast-o-matic.com/home (à télécharger)\",\"http://screencast-o-matic.com/home (à télécharger)\")","v":"http://screencast-o-matic.com/home (à télécharger)"},{"$f":"HYPERLINK(\"https://www.youtube.com/watch?v=caT0WExlK_w\",\"https://www.youtube.com/watch?v=caT0WExlK_w\")","v":"https://www.youtube.com/watch?v=caT0WExlK_w"}]
["Filmer son écran et enregistrer sa voix","Camstudio",null,null,null,{"$f":"HYPERLINK(\"http://camstudio.org/ ( à télécharger)\",\"http://camstudio.org/ ( à télécharger)\")","v":"http://camstudio.org/ ( à télécharger)"},{"$f":"HYPERLINK(\"https://www.youtube.com/watch?v=563eacE09Vc\",\"https://www.youtube.com/watch?v=563eacE09Vc\")","v":"https://www.youtube.com/watch?v=563eacE09Vc"}]
["Organiser, partager des contenus","Pearltrees",null,null,null,{"$f":"HYPERLINK(\"http://www.pearltrees.com/\",\"http://www.pearltrees.com/\")","v":"http://www.pearltrees.com/"},{"$f":"HYPERLINK(\"https://www.youtube.com/watch?v=l4IFF1dAgOo\",\"https://www.youtube.com/watch?v=l4IFF1dAgOo\")","v":"https://www.youtube.com/watch?v=l4IFF1dAgOo"}]
["Partager des fichiers en collaboratif","Google drive",null,null,null,{"$f":"HYPERLINK(\"https://drive.google.com/\",\"Créer une adresse gamail puis\n https://drive.google.com/\")","v":"Créer une adresse gamail puis\n https://drive.google.com/"},{"$f":"HYPERLINK(\"https://www.youtube.com/watch?v=DLBUvv8hvzM\",\"https://www.youtube.com/watch?v=DLBUvv8hvzM\")","v":"https://www.youtube.com/watch?v=DLBUvv8hvzM"}]
["Partager des fichiers en collaboratif","Framapad",null,null,null,{"$f":"HYPERLINK(\"https://framapad.org/\",\"https://framapad.org/\")","v":"https://framapad.org/"},{"$f":"HYPERLINK(\"https://www.youtube.com/watch?v=x4TuG5yEbp0\",\"https://www.youtube.com/watch?v=x4TuG5yEbp0\")","v":"https://www.youtube.com/watch?v=x4TuG5yEbp0"}]
["Planifier un évènement","Doodle",null,null,null,{"$f":"HYPERLINK(\"http://doodle.com/fr/\",\"http://doodle.com/fr/\")","v":"http://doodle.com/fr/"},{"$f":"HYPERLINK(\"https://www.youtube.com/watch?v=ILKsjBp6ROU\",\"https://www.youtube.com/watch?v=ILKsjBp6ROU\")","v":"https://www.youtube.com/watch?v=ILKsjBp6ROU"}]
["Présenter à l’oral des contenus (exposés, notions)","Pow toon",null,null,null,{"$f":"HYPERLINK(\"http://www.powtoon.com/‎\",\"www.powtoon.com/‎\")","v":"www.powtoon.com/‎"},{"$f":"HYPERLINK(\"https://www.youtube.com/watch?v=apvDAZtZezM\",\"https://www.youtube.com/watch?v=apvDAZtZezM\")","v":"https://www.youtube.com/watch?v=apvDAZtZezM"}]
["Présenter à l’oral des contenus (exposés, notions)","Prezi",null,null,null,{"$f":"HYPERLINK(\"https://prezi.com/\",\"https://prezi.com\n (demander version public qui est gratuite)\")","v":"https://prezi.com\n (demander version public qui est gratuite)"},{"$f":"HYPERLINK(\"https://www.youtube.com/watch?v=93PELFJ1CMw\",\"https://www.youtube.com/watch?v=93PELFJ1CMw\")","v":"https://www.youtube.com/watch?v=93PELFJ1CMw"}]
["Réaliser de la veille informationnelle (RSS)","Netvibes",null,null,null,{"$f":"HYPERLINK(\"http://www.netvibes.com/fr\",\"http://www.netvibes.com/fr\")","v":"http://www.netvibes.com/fr"},{"$f":"HYPERLINK(\"https://www.youtube.com/watch?v=At_JaeAu8hw\",\"https://www.youtube.com/watch?v=At_JaeAu8hw\")","v":"https://www.youtube.com/watch?v=At_JaeAu8hw"}]
["Réaliser et administrer des QCM ","Evalqcm",null,null,null,{"$f":"HYPERLINK(\"http://www.evalqcm.fr/\",\"http://www.evalqcm.fr\")","v":"http://www.evalqcm.fr"},{"$f":"HYPERLINK(\"https://www.youtube.com/watch?v=qbyVHt-s5H8\",\"https://www.youtube.com/watch?v=qbyVHt-s5H8\")","v":"https://www.youtube.com/watch?v=qbyVHt-s5H8"}]
["Réaliser un schéma de processus","JMOT",null,null,null,{"$f":"HYPERLINK(\"http://www.jfreesoft.com/JMOT/index.html\",\"www.jfreesoft.com/JMOT/index.html\")","v":"www.jfreesoft.com/JMOT/index.html"}]
["gestion de projet","Trello",null,null,null,"https://trello.com/","https://www.youtube.com/watch?v=DqmXYPNrHcw"]
["Récupérer des vidéos  ","Fluvore","Convertisseur en ligne MP4 et MP3","Oui",null,{"$f":"HYPERLINK(\"http://www.fluvore.com/ (pour youtube)\",\"www.fluvore.com/ (pour youtube)\")","v":"www.fluvore.com/ (pour youtube)"},{"$f":"HYPERLINK(\"https://vimeo.com/293540022\")","v":"https://vimeo.com/293540022"}]
["Extraire le son d'une video Youtube","Freemake","Permet de convertir Youtube en MP3","Oui","Nécessite un logiciel",{"$f":"HYPERLINK(\"http://www.freemake.com/fr/free_youtube_converter/?from=banner\")","v":"http://www.freemake.com/fr/free_youtube_converter/?from=banner"},"https://www.youtube.com/results?search_query=free+youtube+to+mp3+converter+francais"]
["Hébergement audio","Soundcloud","Télécharge des musiques","Oui","Nécessité de se créer un compte",{"$f":"HYPERLINK(\"https://soundcloud.com/#\")","v":"https://soundcloud.com/#"},{"$f":"HYPERLINK(\"https://www.youtube.com/watch?v=pZS1K2k8cLs\")","v":"https://www.youtube.com/watch?v=pZS1K2k8cLs"}]

{"sheet":"LISTE COMPLETE","index":18,"n_rows":80,"n_cols":4,"rows_kept":80,"cut":false,"hidden":false,"merged":[[1,0,1,3]]}
[]
["QUELS OUTILS NUMERIQUES POUR QUELLES ACTIVITES"]
[]
[]
[]
[]
["Quelles activités"," Quels Outils ?"," Quelles adresses","Quels modes opératoires"]
["Récupérer des vidéos  ","Fluvore","www.fluvore.com/ (pour youtube)"]
["Récupérer des vidéos  ","DownloadHelper (Module complémentaire de Firefox","https://addons.mozilla.org/fr/firefox/addon/video-downloadhelper","https://www.youtube.com/watch?v=7YcBkT4PZbg"]
["Récupérer des vidéos  ","Freemake Vidéo Downloader à télécharger)","http://freemake-video-downloader.fr.malavida.com/"]
["Récupérer des vidéos (TNT)","CapTVty","https://captvty.fr/","https://www.youtube.com/watch?v=3J4F3FrbxjQ"]
["Extraire le son d'une video Youtube","freemake Youtube to MP3 Converter","http://www.freemake.com/fr/free_youtube_converter/?from=banner","https://www.youtube.com/results?search_query=free+youtube+to+mp3+converter+francais"]
["Compresser des images","Compressnow","https://compressnow.com/fr/","https://www.youtube.com/watch?v=RBi3e86fb2Q"]
["Convertisseur de fichiers","Zamzar","https://www.zamzar.com/","https://www.youtube.com/watch?v=__fvyEKfZ4o"]
["Hébergement audio","Soundcloud","https://soundcloud.com/#","https://www.youtube.com/watch?v=pZS1K2k8cLs"]
["Hébergement video","Youtube","https://www.youtube.com/","https://www.youtube.com/watch?v=46lag1_JpZ4"]
["Hébergement video","Vimeo","https://vimeo.com/fr/","https://vimeo.com/59856566"]
["Montage video","Renee Video","https://www.reneelab.fr/video-editor","https://www.youtube.com/watch?v=rb0SHQUEaZ0"]
["Convertisseur PDF","Conv2pdf","https://www.conv2pdf.com/","https://www.youtube.com/watch?v=XmlDpZgGqfA"]
["Réaliser un schéma de processus","JMOT",{"$f":"HYPERLINK(\"http://www.jfreesoft.com/JMOT/index.html\",\"www.jfreesoft.com/JMOT/index.html\")","v":"www.jfreesoft.com/JMOT/index.html"}]
["Planifier un évènement","Doodle","http://doodle.com/fr/","https://www.youtube.com/watch?v=ILKsjBp6ROU"]
["Planifier un évènement","Framadate","https://framadate.org/","https://www.youtube.com/watch?v=OEt4WDsQODI"]
["Organiser, partager des contenus","Pearltrees","http://www.pearltrees.com/","https://www.youtube.com/watch?v=l4IFF1dAgOo"]
["Partager des fichiers en collaboratif","Google drive","Créer une adresse gmail puis\n https://drive.google.com/","https://www.youtube.com/watch?v=DLBUvv8hvzM"]
["Partager des fichiers en collaboratif","One Drive","https://onedrive.live.com/about/fr-fr/","https://support.office.com/fr-fr/"]
["Partager des fichiers en collaboratif","DropBox","https://www.dropbox.com/","http://outils-reseaux.org/DropboX"]
["Partager des fichiers en collaboratif","Framapad","https://framapad.org/","https://www.youtube.com/watch?v=x4TuG5yEbp0"]
["Partager et communiquer","Remind","http://www.remind.com","https://www.youtube.com/watch?v=UNCgE4w30qM&feature=youtu.be"]
["Reseau social collaboratif","Edmodo","https://www.edmodo.com/","https://www.youtube.com/watch?v=ayQkc-QDeRI"]
["Réseau social de partage","Twitter","https://twitter.com/?lang=fr","https://www.youtube.com/watch?v=l4uTSJlsLOo"]
["Partager et transfert de contenus","I-Nigma","http://www.i-nigma.com/","https://www.youtube.com/watch?v=7JVmoyNjlXk"]
["Emailing sur Gmail","Gmail","https://www.google.com/intl/fr/gmail/about/","https://www.youtube.com/watch?v=iVv8Lk8tj8o"]
["Agenda partagé","Google Agenda","https://www.google.com/intl/fr/calendar/about/","https://www.youtube.com/watch?v=7e75GMOsAzY"]
["Publier un magasine en ligne","Calameo","https://fr.calameo.com/","https://www.youtube.com/watch?v=jMqgi3mu9tI"]
["Partage de fichiers volumineux","Wetransfer","https://wetransfer.com/","https://www.youtube.com/watch?v=L6xSRmR2T88"]
["Partage de fichiers volumineux","Grosfichiers","https://www.grosfichiers.com/","https://www.youtube.com/watch?v=iXiVMcyGM7Q"]
["Partage de fichiers volumineux","Transfernow","https://www.transfernow.net/","https://www.youtube.com/watch?v=wNI15l7XpX8"]
["Partage de fichiers volumineux","Sendbox","http://www.sendbox.fr/","https://www.youtube.com/watch?v=sZkkEQJ4Kno"]
["Gestion de projet","Wimi",{"$f":"HYPERLINK(\"https://www.wimi-teamwork.com/fr/\")","v":"https://www.wimi-teamwork.com/fr/"},{"$f":"HYPERLINK(\"https://vimeo.com/album/4181241\")","v":"https://vimeo.com/album/4181241"}]
["Gestion de projet","Trello",{"$f":"HYPERLINK(\"https://trello.com/\")","v":"https://trello.com/"},{"$f":"HYPERLINK(\"https://www.youtube.com/watch?v=DqmXYPNrHcw\")","v":"https://www.youtube.com/watch?v=DqmXYPNrHcw"}]
["Filmer son écran et enregistrer sa voix","Screencast-o-matic","http://screencast-o-matic.com/home","https://www.youtube.com/watch?v=caT0WExlK_w"]
["Filmer son écran et enregistrer sa voix","Camstudio","http://camstudio.org/","https://www.youtube.com/watch?v=563eacE09Vc"]
["Filmer son écran et enregistrer sa voix","123apps","https://123apps.com/fr/"]
["Filmer son écran et enregistrer sa voix","Extension Google Chrome :\nVidyard GoVideo","https://chrome.google.com/webstore/detail/vidyard-govideo-screen-an/","https://www.youtube.com/watch?v=P3lz7adlRS8"]
["Créer une carte mentale","Mindomo","https://www.mindomo.com/","https://www.youtube.com/watch?v=9I0BEqi8RIs&feature=youtu.be"]
["Créer une carte mentale","Freemind","http://freemind.sourceforge.net/wiki/index.php/Download","https://www.youtube.com/watch?v=W1z65gNFZuk"]
["Créer une carte mentale","Mindmeister","https://www.mindmeister.com/fr/account/login?product=1","https://www.youtube.com/watch?v=7DCcetMTtB0"]
["Créer une carte mentale","Ideateur","http://ideateur.planete-education.com/#"]
["Créer un mur collaboratif","Padlet",{"$f":"HYPERLINK(\"https://fr.padlet.com/\",\"https://fr.padlet.com/\")","v":"https://fr.padlet.com/"},{"$f":"HYPERLINK(\"https://www.youtube.com/watch?v=akWyL8o1qcE\")","v":"https://www.youtube.com/watch?v=akWyL8o1qcE"}]
["Présenter à l’oral des contenus (exposés, notions)","Pow toon","www.powtoon.com/‎","https://www.youtube.com/watch?v=apvDAZtZezM"]
["Présenter à l’oral des contenus (exposés, notions)","Animaker","https://www.animaker.com/","https://www.animaker.fr/infographics"]
["Présenter à l’oral des contenus (exposés, notions)","Voki","https://www.voki.com/","https://www.youtube.com/watch?v=irNgQMPT9M8"]
["Présenter à l’oral des contenus (exposés, notions)","Tellagami","http://scenari.crdp-limousin.fr/lexique_classe/co/tellagami.html","https://www.youtube.com/watch?v=63tLopddDcQ"]
["Présenter à l’oral des contenus (exposés, notions)","Explee","https://explee.com/fr/","https://www.youtube.com/watch?v=EpsK-gupiEg"]
["Présenter à l’oral des contenus (exposés, notions)","Office Sway","https://sway.office.com/","https://www.youtube.com/watch?v=gR0cqqHQE9k&feature=youtu.be"]
["Présenter à l’oral des contenus (exposés, notions)","Google Slide","https://www.google.fr/intl/fr/slides/about/","https://www.youtube.com/watch?v=bocINzLK6gE"]
["Présenter à l’oral des contenus (exposés, notions)","Prezi","https://prezi.com\n (demander version public qui est gratuite)","https://www.youtube.com/watch?v=93PELFJ1CMw"]
["Présenter à l’oral des contenus (exposés, notions)","Skype","https://www.skype.com/fr/","https://www.youtube.com/watch?v=n3gqMWE7go0"]
["Présenter à l’oral des contenus (exposés, notions)","Google Hangout","https://hangouts.google.com/?hl=fr","https://www.youtube.com/watch?v=KRYDzaWrSpk"]
["Présenter à l’oral des contenus (exposés, notions)","Weebly","https://www.weebly.com/fr#/","https://www.youtube.com/watch?v=hbj7lo5F5iw"]
["Présenter à l’oral des contenus (exposés, notions)","Jimdo","https://fr.jimdo.com/#ref=a890519","https://www.youtube.com/watch?v=-0T7hv01uQY"]
["Présenter à l’oral des contenus (exposés, notions)","Wix","https://fr.wix.com/","https://www.youtube.com/watch?v=AUgW8DE9eFg"]
["Présenter à l’oral des contenus (exposés, notions)","Webnode","https://www.webnode.fr/","https://www.youtube.com/watch?v=Z6K-7IhYBK4"]
["Présenter à l’oral des contenus (exposés, notions)","e-monsite","https://www.e-monsite.com/","https://www.youtube.com/watch?v=-RxlPAxclxU"]
["Présenter à l’oral des contenus (exposés, notions)","wifeo","http://www.wifeo.com/","https://www.youtube.com/channel"]
["Image interactive","Thinglink","https://www.thinglink.com/","https://www.youtube.com/watch?v=TcvRutavGIU"]
["Réaliser de la veille informationnelle (RSS)","Start.me",{"$f":"HYPERLINK(\"https://start.me/fr/what-is-startme\")","v":"https://start.me/fr/what-is-startme"}]
["Réaliser de la veille informationnelle (RSS)","Clipix",{"$f":"HYPERLINK(\"https://www.clipix.com/\")","v":"https://www.clipix.com/"},{"$f":"HYPERLINK(\"https://www.youtube.com/watch?v=49m2Kdtngdk\")","v":"https://www.youtube.com/watch?v=49m2Kdtngdk"}]
["Réaliser de la veille informationnelle (RSS)","Symbaloo",{"$f":"HYPERLINK(\"https://www.symbaloo.com/home/mix/13eOcLh2jj\")","v":"https://www.symbaloo.com/home/mix/13eOcLh2jj"},{"$f":"HYPERLINK(\"https://www.youtube.com/watch?v=QdrcVzrG7TI\")","v":"https://www.youtube.com/watch?v=QdrcVzrG7TI"}]
["Réaliser de la veille informationnelle (RSS)","Google Alerts",{"$f":"HYPERLINK(\"https://www.google.fr/alerts\")","v":"https://www.google.fr/alerts"},{"$f":"HYPERLINK(\"https://www.youtube.com/watch?v=hLk8NY38F8Y\")","v":"https://www.youtube.com/watch?v=hLk8NY38F8Y"}]
["Réaliser de la veille informationnelle (RSS)","Netvibes",{"$f":"HYPERLINK(\"http://www.netvibes.com/fr\",\"http://www.netvibes.com/fr\")","v":"http://www.netvibes.com/fr"},{"$f":"HYPERLINK(\"https://www.youtube.com/watch?v=At_JaeAu8hw\",\"https://www.youtube.com/watch?v=At_JaeAu8hw\")","v":"https://www.youtube.com/watch?v=At_JaeAu8hw"}]
["Réaliser et administrer des QCM ","Socrative","http://www.socrative.com/","https://www.youtube.com/watch?v=M6iVtc5KRaE&feature=youtu.be"]
["Réaliser et administrer des QCM ","Evalqcm","http://www.evalqcm.fr","https://www.youtube.com/watch?v=qbyVHt-s5H8"]
["Réaliser et administrer des QCM ","Quizyourself","https://quizzyourself.com/login","https://www.youtube.com/watch?v=HbvTjKKNTF8"]
["Réaliser et administrer un sondage","Plickers","https://www.plickers.com/","https://www.youtube.com/watch?v=aztFXFkDwUw"]
["Réaliser un questionnaire en ligne","Google Forms","https://www.google.com/forms/about/","https://www.youtube.com/watch?v=gNZv9mRiTcc"]
["Création de flashcards","Quizlet","https://quizlet.com/fr-fr","https://www.youtube.com/watch?v=AaPedIa-ZP8"]
["Création de jeux pédagogiques","LearningApps","https://learningapps.org/index.php?category=14&s=","https://www.youtube.com/watch?v=KkX0iPlRLAg"]
["Création de jeux pédagogiques","Educaplay","https://fr.educaplay.com/","https://www.youtube.com/watch?v=Eyuz-5MmQRk"]
[{"$f":"COUNTA(A8:A79)","v":72}]